Workbook

Sheet Triangle with CY correlation
M3: Simulated Random Numbers (between 0 and 1) | Z3: Index for Diagonals
L4: 12 | M4: =L4+12 -> 24 | N4: =M4+12 -> 36 | O4: =N4+12 -> 48 | P4: =O4+12 -> 60 | Q4: =P4+12 -> 72 | R4: =Q4+12 -> 84 | S4: =R4+12 -> 96 | T4: =S4+12 -> 108 | U4: =T4+12 -> 120 | Y4: 12 | Z4: =Y4+12 -> 24 | AA4: =Z4+12 -> 36 | AB4: 48 | AC4: 60 | AD4: 72 | AE4: 84 | AF4: 96 | AG4: 108 | AH4: 120
C5: Correlation Assumption | K5: =K6-1 -> 2011 | L5: =SUMPRODUCT(($K5=$C$20:$C$74)*1,(L$4=$D$20:$D$74)*1,$I$20:$I$74) -> 0.6386495284 | M5: =SUMPRODUCT(($K5=$C$20:$C$74)*1,(M$4=$D$20:$D$74)*1,$I$20:$I$74) -> 0.8086815941 | N5: =SUMPRODUCT(($K5=$C$20:$C$74)*1,(N$4=$D$20:$D$74)*1,$I$20:$I$74) -> 0.4363508945 | O5: =SUMPRODUCT(($K5=$C$20:$C$74)*1,(O$4=$D$20:$D$74)*1,$I$20:$I$74) -> 0.5260220503 | P5: =SUMPRODUCT(($K5=$C$20:$C$74)*1,(P$4=$D$20:$D$74)*1,$I$20:$I$74) -> 0.9205880063 | Q5: =SUMPRODUCT(($K5=$C$20:$C$74)*1,(Q$4=$D$20:$D$74)*1,$I$20:$I$74) -> 0.7318512052 | R5: =SUMPRODUCT(($K5=$C$20:$C$74)*1,(R$4=$D$20:$D$74)*1,$I$20:$I$74) -> 0.02744607084 | S5: =SUMPRODUCT(($K5=$C$20:$C$74)*1,(S$4=$D$20:$D$74)*1,$I$20:$I$74) -> 0.6561978011 | T5: =SUMPRODUCT(($K5=$C$20:$C$74)*1,(T$4=$D$20:$D$74)*1,$I$20:$I$74) -> 0.01450227387 | U5: =SUMPRODUCT(($K5=$C$20:$C$74)*1,(U$4=$D$20:$D$74)*1,$I$20:$I$74) -> 0.1647921334 | X5: =X6-1 -> 2011 | Y5: 1 | Z5: =Y6 -> 2 | AA5: 3 | AB5: 4 | AC5: 5 | AD5: 6 | AE5: 7 | AF5: 8 | AG5: 9 | AH5: 10
C6: one step | D6: 0.5 | E6: <== this changes strenght of correlation | K6: 2012 | L6: =SUMPRODUCT(($K6=$C$20:$C$74)*1,(L$4=$D$20:$D$74)*1,$I$20:$I$74) -> 0.5671214309 | M6: =SUMPRODUCT(($K6=$C$20:$C$74)*1,(M$4=$D$20:$D$74)*1,$I$20:$I$74) -> 0.4130960749 | N6: =SUMPRODUCT(($K6=$C$20:$C$74)*1,(N$4=$D$20:$D$74)*1,$I$20:$I$74) -> 0.8611330514 | O6: =SUMPRODUCT(($K6=$C$20:$C$74)*1,(O$4=$D$20:$D$74)*1,$I$20:$I$74) -> 0.1926157701 | P6: =SUMPRODUCT(($K6=$C$20:$C$74)*1,(P$4=$D$20:$D$74)*1,$I$20:$I$74) -> 0.6754573982 | Q6: =SUMPRODUCT(($K6=$C$20:$C$74)*1,(Q$4=$D$20:$D$74)*1,$I$20:$I$74) -> 0.3944715366 | R6: =SUMPRODUCT(($K6=$C$20:$C$74)*1,(R$4=$D$20:$D$74)*1,$I$20:$I$74) -> 0.4660351878 | S6: =SUMPRODUCT(($K6=$C$20:$C$74)*1,(S$4=$D$20:$D$74)*1,$I$20:$I$74) -> 0.1073400614 | T6: =SUMPRODUCT(($K6=$C$20:$C$74)*1,(T$4=$D$20:$D$74)*1,$I$20:$I$74) -> 0.025741562 | X6: 2012 | Y6: 2 | Z6: =Y7 -> 3 | AA6: 4 | AB6: 5 | AC6: 6 | AD6: 7 | AE6: 8 | AF6: 9 | AG6: 10
K7: 2013 | L7: =SUMPRODUCT(($K7=$C$20:$C$74)*1,(L$4=$D$20:$D$74)*1,$I$20:$I$74) -> 0.4359678723 | M7: =SUMPRODUCT(($K7=$C$20:$C$74)*1,(M$4=$D$20:$D$74)*1,$I$20:$I$74) -> 0.6701164776 | N7: =SUMPRODUCT(($K7=$C$20:$C$74)*1,(N$4=$D$20:$D$74)*1,$I$20:$I$74) -> 0.8366230537 | O7: =SUMPRODUCT(($K7=$C$20:$C$74)*1,(O$4=$D$20:$D$74)*1,$I$20:$I$74) -> 0.4546045057 | P7: =SUMPRODUCT(($K7=$C$20:$C$74)*1,(P$4=$D$20:$D$74)*1,$I$20:$I$74) -> 0.2967917448 | Q7: =SUMPRODUCT(($K7=$C$20:$C$74)*1,(Q$4=$D$20:$D$74)*1,$I$20:$I$74) -> 0.5785014722 | R7: =SUMPRODUCT(($K7=$C$20:$C$74)*1,(R$4=$D$20:$D$74)*1,$I$20:$I$74) -> 0.06976015546 | S7: =SUMPRODUCT(($K7=$C$20:$C$74)*1,(S$4=$D$20:$D$74)*1,$I$20:$I$74) -> 0.323874881 | X7: 2013 | Y7: 3 | Z7: 4 | AA7: 5 | AB7: 6 | AC7: 7 | AD7: 8 | AE7: 9 | AF7: 10
C8: Average Correlation: | D8: =(SUM($K$20:$BM$74)-55)/2970 -> 0.1494870581 | K8: 2014 | L8: =SUMPRODUCT(($K8=$C$20:$C$74)*1,(L$4=$D$20:$D$74)*1,$I$20:$I$74) -> 0.8708174489 | M8: =SUMPRODUCT(($K8=$C$20:$C$74)*1,(M$4=$D$20:$D$74)*1,$I$20:$I$74) -> 0.2492776483 | N8: =SUMPRODUCT(($K8=$C$20:$C$74)*1,(N$4=$D$20:$D$74)*1,$I$20:$I$74) -> 0.1460184418 | O8: =SUMPRODUCT(($K8=$C$20:$C$74)*1,(O$4=$D$20:$D$74)*1,$I$20:$I$74) -> 0.3261775212 | P8: =SUMPRODUCT(($K8=$C$20:$C$74)*1,(P$4=$D$20:$D$74)*1,$I$20:$I$74) -> 0.2930547934 | Q8: =SUMPRODUCT(($K8=$C$20:$C$74)*1,(Q$4=$D$20:$D$74)*1,$I$20:$I$74) -> 0.5133248594 | R8: =SUMPRODUCT(($K8=$C$20:$C$74)*1,(R$4=$D$20:$D$74)*1,$I$20:$I$74) -> 0.1231746286 | X8: 2014 | Y8: 4 | Z8: 5 | AA8: 6 | AB8: 7 | AC8: 8 | AD8: 9 | AE8: 10
K9: 2015 | L9: =SUMPRODUCT(($K9=$C$20:$C$74)*1,(L$4=$D$20:$D$74)*1,$I$20:$I$74) -> 0.4698329855 | M9: =SUMPRODUCT(($K9=$C$20:$C$74)*1,(M$4=$D$20:$D$74)*1,$I$20:$I$74) -> 0.4896907742 | N9: =SUMPRODUCT(($K9=$C$20:$C$74)*1,(N$4=$D$20:$D$74)*1,$I$20:$I$74) -> 0.08814673283 | O9: =SUMPRODUCT(($K9=$C$20:$C$74)*1,(O$4=$D$20:$D$74)*1,$I$20:$I$74) -> 0.157417748 | P9: =SUMPRODUCT(($K9=$C$20:$C$74)*1,(P$4=$D$20:$D$74)*1,$I$20:$I$74) -> 0.1256956559 | Q9: =SUMPRODUCT(($K9=$C$20:$C$74)*1,(Q$4=$D$20:$D$74)*1,$I$20:$I$74) -> 0.09528894986 | X9: 2015 | Y9: 5 | Z9: 6 | AA9: 7 | AB9: 8 | AC9: 9 | AD9: 10
K10: 2016 | L10: =SUMPRODUCT(($K10=$C$20:$C$74)*1,(L$4=$D$20:$D$74)*1,$I$20:$I$74) -> 0.8473207222 | M10: =SUMPRODUCT(($K10=$C$20:$C$74)*1,(M$4=$D$20:$D$74)*1,$I$20:$I$74) -> 0.02120275317 | N10: =SUMPRODUCT(($K10=$C$20:$C$74)*1,(N$4=$D$20:$D$74)*1,$I$20:$I$74) -> 0.8532148693 | O10: =SUMPRODUCT(($K10=$C$20:$C$74)*1,(O$4=$D$20:$D$74)*1,$I$20:$I$74) -> 0.5295117999 | P10: =SUMPRODUCT(($K10=$C$20:$C$74)*1,(P$4=$D$20:$D$74)*1,$I$20:$I$74) -> 0.1204522945 | X10: 2016 | Y10: 6 | Z10: 7 | AA10: 8 | AB10: 9 | AC10: 10
K11: 2017 | L11: =SUMPRODUCT(($K11=$C$20:$C$74)*1,(L$4=$D$20:$D$74)*1,$I$20:$I$74) -> 0.1294708397 | M11: =SUMPRODUCT(($K11=$C$20:$C$74)*1,(M$4=$D$20:$D$74)*1,$I$20:$I$74) -> 0.3215472097 | N11: =SUMPRODUCT(($K11=$C$20:$C$74)*1,(N$4=$D$20:$D$74)*1,$I$20:$I$74) -> 0.2896830026 | O11: =SUMPRODUCT(($K11=$C$20:$C$74)*1,(O$4=$D$20:$D$74)*1,$I$20:$I$74) -> 0.03939442594 | X11: 2017 | Y11: 7 | Z11: 8 | AA11: 9 | AB11: 10
K12: 2018 | L12: =SUMPRODUCT(($K12=$C$20:$C$74)*1,(L$4=$D$20:$D$74)*1,$I$20:$I$74) -> 0.1944777552 | M12: =SUMPRODUCT(($K12=$C$20:$C$74)*1,(M$4=$D$20:$D$74)*1,$I$20:$I$74) -> 0.2831054758 | N12: =SUMPRODUCT(($K12=$C$20:$C$74)*1,(N$4=$D$20:$D$74)*1,$I$20:$I$74) -> 0.06839001035 | X12: 2018 | Y12: 8 | Z12: 9 | AA12: 10
K13: 2019 | L13: =SUMPRODUCT(($K13=$C$20:$C$74)*1,(L$4=$D$20:$D$74)*1,$I$20:$I$74) -> 0.05250279165 | M13: =SUMPRODUCT(($K13=$C$20:$C$74)*1,(M$4=$D$20:$D$74)*1,$I$20:$I$74) -> 0.1157517674 | X13: 2019 | Y13: 9 | Z13: 10
K14: 2020 | L14: =SUMPRODUCT(($K14=$C$20:$C$74)*1,(L$4=$D$20:$D$74)*1,$I$20:$I$74) -> 0.0488758046 | X14: 2020 | Y14: 10
H16: Simulated Results | O16: Correlation Matrix (55 by 55)
G17: Independent | H17: Correlated | I17: Correlated | K17: 1 | L17: =K17+1 -> 2 | M17: =L17+1 -> 3 | N17: 4 | O17: 5 | P17: 6 | Q17: 7 | R17: 8 | S17: 9 | T17: 10 | U17: 11 | V17: 12 | W17: 13 | X17: 14 | Y17: 15 | Z17: 16 | AA17: 17 | AB17: 18 | AC17: 19 | AD17: 20 | AE17: 21 | AF17: 22 | AG17: 23 | AH17: 24 | AI17: 25 | AJ17: 26 | AK17: 27 | AL17: 28 | AM17: 29 | AN17: 30 | AO17: 31 | AP17: 32 | AQ17: 33 | AR17: 34 | AS17: 35 | AT17: 36 | AU17: 37 | AV17: 38 | AW17: 39 | AX17: 40 | AY17: 41 | AZ17: 42 | BA17: 43 | BB17: 44 | BC17: 45 | BD17: 46 | BE17: 47 | BF17: 48 | BG17: 49 | BH17: 50 | BI17: 51 | BJ17: 52 | BK17: 53 | BL17: 54 | BM17: 55
B18: Row# | C18: AY | D18: Dev Age | E18: Diagonal | G18: Normals | H18: Normals | I18: Rand# | K18: =INDEX($E$20:$E$74,K17) -> 10 | L18: =INDEX($E$20:$E$74,L17) -> 10 | M18: =INDEX($E$20:$E$74,M17) -> 10 | N18: =INDEX($E$20:$E$74,N17) -> 10 | O18: =INDEX($E$20:$E$74,O17) -> 10 | P18: =INDEX($E$20:$E$74,P17) -> 10 | Q18: =INDEX($E$20:$E$74,Q17) -> 10 | R18: =INDEX($E$20:$E$74,R17) -> 10 | S18: =INDEX($E$20:$E$74,S17) -> 10 | T18: =INDEX($E$20:$E$74,T17) -> 10 | U18: =INDEX($E$20:$E$74,U17) -> 9 | V18: =INDEX($E$20:$E$74,V17) -> 9 | W18: =INDEX($E$20:$E$74,W17) -> 9 | X18: =INDEX($E$20:$E$74,X17) -> 9 | Y18: =INDEX($E$20:$E$74,Y17) -> 9 | Z18: =INDEX($E$20:$E$74,Z17) -> 9 | AA18: =INDEX($E$20:$E$74,AA17) -> 9 | AB18: =INDEX($E$20:$E$74,AB17) -> 9 | AC18: =INDEX($E$20:$E$74,AC17) -> 9 | AD18: =INDEX($E$20:$E$74,AD17) -> 8 | AE18: =INDEX($E$20:$E$74,AE17) -> 8 | AF18: =INDEX($E$20:$E$74,AF17) -> 8 | AG18: =INDEX($E$20:$E$74,AG17) -> 8 | AH18: =INDEX($E$20:$E$74,AH17) -> 8 | AI18: =INDEX($E$20:$E$74,AI17) -> 8 | AJ18: =INDEX($E$20:$E$74,AJ17) -> 8 | AK18: =INDEX($E$20:$E$74,AK17) -> 8 | AL18: =INDEX($E$20:$E$74,AL17) -> 7 | AM18: =INDEX($E$20:$E$74,AM17) -> 7 | AN18: =INDEX($E$20:$E$74,AN17) -> 7 | AO18: =INDEX($E$20:$E$74,AO17) -> 7 | AP18: =INDEX($E$20:$E$74,AP17) -> 7 | AQ18: =INDEX($E$20:$E$74,AQ17) -> 7 | AR18: =INDEX($E$20:$E$74,AR17) -> 7 | AS18: =INDEX($E$20:$E$74,AS17) -> 6 | AT18: =INDEX($E$20:$E$74,AT17) -> 6 | AU18: =INDEX($E$20:$E$74,AU17) -> 6 | AV18: =INDEX($E$20:$E$74,AV17) -> 6 | AW18: =INDEX($E$20:$E$74,AW17) -> 6 | AX18: =INDEX($E$20:$E$74,AX17) -> 6 | AY18: =INDEX($E$20:$E$74,AY17) -> 5 | AZ18: =INDEX($E$20:$E$74,AZ17) -> 5 | BA18: =INDEX($E$20:$E$74,BA17) -> 5 | BB18: =INDEX($E$20:$E$74,BB17) -> 5 | BC18: =INDEX($E$20:$E$74,BC17) -> 5 | BD18: =INDEX($E$20:$E$74,BD17) -> 4 | BE18: =INDEX($E$20:$E$74,BE17) -> 4 | BF18: =INDEX($E$20:$E$74,BF17) -> 4 | BG18: =INDEX($E$20:$E$74,BG17) -> 4 | BH18: =INDEX($E$20:$E$74,BH17) -> 3 | BI18: =INDEX($E$20:$E$74,BI17) -> 3 | BJ18: =INDEX($E$20:$E$74,BJ17) -> 3 | BK18: =INDEX($E$20:$E$74,BK17) -> 2 | BL18: =INDEX($E$20:$E$74,BL17) -> 2 | BM18: =INDEX($E$20:$E$74,BM17) -> 1
B20: 1 | C20: 2011 | D20: 120 | E20: =C20-C$20+D20/12 -> 10 | G20: =_xlfn.NORM.S.INV(RAND()) -> -0.9749516039 | H20: =MMULT(_xlfn.ANCHORARRAY('Cholesky Decomposition'!B5),'Triangle with CY correlation'!$G$20:$G$74) -> -0.9749516039 | I20: =_xlfn.NORM.S.DIST(H20,1) -> 0.1647921334 | K20: =IF($B20=K$17,1,$D$6^(1+ABS($E20-K$18))) -> 1 | L20: 0.5 | M20: 0.5 | N20: 0.5 | O20: 0.5 | P20: 0.5 | Q20: 0.5 | R20: 0.5 | S20: 0.5 | T20: 0.5 | U20: =IF($B20=U$17,1,$D$6^(1+ABS($E20-U$18))) -> 0.25 | V20: 0.25 | W20: 0.25 | X20: 0.25 | Y20: 0.25 | Z20: 0.25 | AA20: 0.25 | AB20: 0.25 | AC20: 0.25 | AD20: 0.125 | AE20: =IF($B20=AE$17,1,$D$6^(1+ABS($E20-AE$18))) -> 0.125 | AF20: 0.125 | AG20: 0.125 | AH20: 0.125 | AI20: 0.125 | AJ20: 0.125 | AK20: 0.125 | AL20: 0.0625 | AM20: 0.0625 | AN20: 0.0625 | AO20: =IF($B20=AO$17,1,$D$6^(1+ABS($E20-AO$18))) -> 0.0625 | AP20: 0.0625 | AQ20: 0.0625 | AR20: 0.0625 | AS20: 0.03125 | AT20: 0.03125 | AU20: 0.03125 | AV20: 0.03125 | AW20: 0.03125 | AX20: 0.03125 | AY20: =IF($B20=AY$17,1,$D$6^(1+ABS($E20-AY$18))) -> 0.015625 | AZ20: 0.015625 | BA20: 0.015625 | BB20: 0.015625 | BC20: 0.015625 | BD20: 0.0078125 | BE20: 0.0078125 | BF20: 0.0078125 | BG20: 0.0078125 | BH20: 0.00390625 | BI20: 0.00390625 | BJ20: 0.00390625 | BK20: 0.001953125 | BL20: 0.001953125 | BM20: 0.0009765625
B21: =B20+1 -> 2 | C21: =C20+1 -> 2012 | D21: =D20-12 -> 108 | E21: =C21-C$20+D21/12 -> 10 | G21: =_xlfn.NORM.S.INV(RAND()) -> -1.685810673 | H21: -1.947430671 | I21: =_xlfn.NORM.S.DIST(H21,1) -> 0.025741562 | K21: 0.5 | L21: 1 | M21: 0.5 | N21: 0.5 | O21: 0.5 | P21: 0.5 | Q21: 0.5 | R21: 0.5 | S21: 0.5 | T21: 0.5 | U21: 0.25 | V21: 0.25 | W21: 0.25 | X21: 0.25 | Y21: 0.25 | Z21: 0.25 | AA21: 0.25 | AB21: 0.25 | AC21: 0.25 | AD21: 0.125 | AE21: 0.125 | AF21: 0.125 | AG21: 0.125 | AH21: 0.125 | AI21: 0.125 | AJ21: 0.125 | AK21: 0.125 | AL21: 0.0625 | AM21: 0.0625 | AN21: 0.0625 | AO21: 0.0625 | AP21: 0.0625 | AQ21: 0.0625 | AR21: 0.0625 | AS21: 0.03125 | AT21: 0.03125 | AU21: 0.03125 | AV21: 0.03125 | AW21: 0.03125 | AX21: 0.03125 | AY21: 0.015625 | AZ21: 0.015625 | BA21: 0.015625 | BB21: 0.015625 | BC21: 0.015625 | BD21: 0.0078125 | BE21: 0.0078125 | BF21: 0.0078125 | BG21: 0.0078125 | BH21: 0.00390625 | BI21: 0.00390625 | BJ21: 0.00390625 | BK21: 0.001953125 | BL21: 0.001953125 | BM21: 0.0009765625
B22: =B21+1 -> 3 | C22: =C21+1 -> 2013 | D22: =D21-12 -> 96 | E22: 10 | G22: 0.633483287 | H22: -0.4568904869 | I22: 0.323874881 | K22: 0.5 | L22: 0.5 | M22: 1 | N22: 0.5 | O22: 0.5 | P22: 0.5 | Q22: 0.5 | R22: 0.5 | S22: 0.5 | T22: 0.5 | U22: 0.25 | V22: 0.25 | W22: 0.25 | X22: 0.25 | Y22: 0.25 | Z22: 0.25 | AA22: 0.25 | AB22: 0.25 | AC22: 0.25 | AD22: 0.125 | AE22: 0.125 | AF22: 0.125 | AG22: 0.125 | AH22: 0.125 | AI22: 0.125 | AJ22: 0.125 | AK22: 0.125 | AL22: 0.0625 | AM22: 0.0625 | AN22: 0.0625 | AO22: 0.0625 | AP22: 0.0625 | AQ22: 0.0625 | AR22: 0.0625 | AS22: 0.03125 | AT22: 0.03125 | AU22: 0.03125 | AV22: 0.03125 | AW22: 0.03125 | AX22: 0.03125 | AY22: 0.015625 | AZ22: 0.015625 | BA22: 0.015625 | BB22: 0.015625 | BC22: 0.015625 | BD22: 0.0078125 | BE22: 0.0078125 | BF22: 0.0078125 | BG22: 0.0078125 | BH22: 0.00390625 | BI22: 0.00390625 | BJ22: 0.00390625 | BK22: 0.001953125 | BL22: 0.001953125 | BM22: 0.0009765625
B23: 4 | C23: 2014 | D23: 84 | E23: 10 | G23: -0.397743916 | H23: -1.159262365 | I23: 0.1231746286 | K23: 0.5 | L23: 0.5 | M23: 0.5 | N23: 1 | O23: 0.5 | P23: 0.5 | Q23: 0.5 | R23: 0.5 | S23: 0.5 | T23: 0.5 | U23: 0.25 | V23: 0.25 | W23: 0.25 | X23: 0.25 | Y23: 0.25 | Z23: 0.25 | AA23: 0.25 | AB23: 0.25 | AC23: 0.25 | AD23: 0.125 | AE23: 0.125 | AF23: 0.125 | AG23: 0.125 | AH23: 0.125 | AI23: 0.125 | AJ23: 0.125 | AK23: 0.125 | AL23: 0.0625 | AM23: 0.0625 | AN23: 0.0625 | AO23: 0.0625 | AP23: 0.0625 | AQ23: 0.0625 | AR23: 0.0625 | AS23: 0.03125 | AT23: 0.03125 | AU23: 0.03125 | AV23: 0.03125 | AW23: 0.03125 | AX23: 0.03125 | AY23: 0.015625 | AZ23: 0.015625 | BA23: 0.015625 | BB23: 0.015625 | BC23: 0.015625 | BD23: 0.0078125 | BE23: 0.0078125 | BF23: 0.0078125 | BG23: 0.0078125 | BH23: 0.00390625 | BI23: 0.00390625 | BJ23: 0.00390625 | BK23: 0.001953125 | BL23: 0.001953125 | BM23: 0.0009765625
B24: 5 | C24: 2015 | D24: 72 | E24: 10 | G24: -0.5179010426 | H24: -1.308871448 | I24: 0.09528894986 | K24: 0.5 | L24: 0.5 | M24: 0.5 | N24: 0.5 | O24: 1 | P24: 0.5 | Q24: 0.5 | R24: 0.5 | S24: 0.5 | T24: 0.5 | U24: 0.25 | V24: 0.25 | W24: 0.25 | X24: 0.25 | Y24: 0.25 | Z24: 0.25 | AA24: 0.25 | AB24: 0.25 | AC24: 0.25 | AD24: 0.125 | AE24: 0.125 | AF24: 0.125 | AG24: 0.125 | AH24: 0.125 | AI24: 0.125 | AJ24: 0.125 | AK24: 0.125 | AL24: 0.0625 | AM24: 0.0625 | AN24: 0.0625 | AO24: 0.0625 | AP24: 0.0625 | AQ24: 0.0625 | AR24: 0.0625 | AS24: 0.03125 | AT24: 0.03125 | AU24: 0.03125 | AV24: 0.03125 | AW24: 0.03125 | AX24: 0.03125 | AY24: 0.015625 | AZ24: 0.015625 | BA24: 0.015625 | BB24: 0.015625 | BC24: 0.015625 | BD24: 0.0078125 | BE24: 0.0078125 | BF24: 0.0078125 | BG24: 0.0078125 | BH24: 0.00390625 | BI24: 0.00390625 | BJ24: 0.00390625 | BK24: 0.001953125 | BL24: 0.001953125 | BM24: 0.0009765625
B25: 6 | C25: 2016 | D25: 60 | E25: 10 | G25: -0.2594536662 | H25: -1.172728773 | I25: 0.1204522945 | K25: 0.5 | L25: 0.5 | M25: 0.5 | N25: 0.5 | O25: 0.5 | P25: 1 | Q25: 0.5 | R25: 0.5 | S25: 0.5 | T25: 0.5 | U25: 0.25 | V25: 0.25 | W25: 0.25 | X25: 0.25 | Y25: 0.25 | Z25: 0.25 | AA25: 0.25 | AB25: 0.25 | AC25: 0.25 | AD25: 0.125 | AE25: 0.125 | AF25: 0.125 | AG25: 0.125 | AH25: 0.125 | AI25: 0.125 | AJ25: 0.125 | AK25: 0.125 | AL25: 0.0625 | AM25: 0.0625 | AN25: 0.0625 | AO25: 0.0625 | AP25: 0.0625 | AQ25: 0.0625 | AR25: 0.0625 | AS25: 0.03125 | AT25: 0.03125 | AU25: 0.03125 | AV25: 0.03125 | AW25: 0.03125 | AX25: 0.03125 | AY25: 0.015625 | AZ25: 0.015625 | BA25: 0.015625 | BB25: 0.015625 | BC25: 0.015625 | BD25: 0.0078125 | BE25: 0.0078125 | BF25: 0.0078125 | BG25: 0.0078125 | BH25: 0.00390625 | BI25: 0.00390625 | BJ25: 0.00390625 | BK25: 0.001953125 | BL25: 0.001953125 | BM25: 0.0009765625
B26: 7 | C26: 2017 | D26: 48 | E26: 10 | G26: -0.9986131644 | H26: -1.757757075 | I26: 0.03939442594 | K26: 0.5 | L26: 0.5 | M26: 0.5 | N26: 0.5 | O26: 0.5 | P26: 0.5 | Q26: 1 | R26: 0.5 | S26: 0.5 | T26: 0.5 | U26: 0.25 | V26: 0.25 | W26: 0.25 | X26: 0.25 | Y26: 0.25 | Z26: 0.25 | AA26: 0.25 | AB26: 0.25 | AC26: 0.25 | AD26: 0.125 | AE26: 0.125 | AF26: 0.125 | AG26: 0.125 | AH26: 0.125 | AI26: 0.125 | AJ26: 0.125 | AK26: 0.125 | AL26: 0.0625 | AM26: 0.0625 | AN26: 0.0625 | AO26: 0.0625 | AP26: 0.0625 | AQ26: 0.0625 | AR26: 0.0625 | AS26: 0.03125 | AT26: 0.03125 | AU26: 0.03125 | AV26: 0.03125 | AW26: 0.03125 | AX26: 0.03125 | AY26: 0.015625 | AZ26: 0.015625 | BA26: 0.015625 | BB26: 0.015625 | BC26: 0.015625 | BD26: 0.0078125 | BE26: 0.0078125 | BF26: 0.0078125 | BG26: 0.0078125 | BH26: 0.00390625 | BI26: 0.00390625 | BJ26: 0.00390625 | BK26: 0.001953125 | BL26: 0.001953125 | BM26: 0.0009765625
B27: 8 | C27: 2018 | D27: 36 | E27: 10 | G27: -0.5208706796 | H27: -1.487889563 | I27: 0.06839001035 | K27: 0.5 | L27: 0.5 | M27: 0.5 | N27: 0.5 | O27: 0.5 | P27: 0.5 | Q27: 0.5 | R27: 1 | S27: 0.5 | T27: 0.5 | U27: 0.25 | V27: 0.25 | W27: 0.25 | X27: 0.25 | Y27: 0.25 | Z27: 0.25 | AA27: 0.25 | AB27: 0.25 | AC27: 0.25 | AD27: 0.125 | AE27: 0.125 | AF27: 0.125 | AG27: 0.125 | AH27: 0.125 | AI27: 0.125 | AJ27: 0.125 | AK27: 0.125 | AL27: 0.0625 | AM27: 0.0625 | AN27: 0.0625 | AO27: 0.0625 | AP27: 0.0625 | AQ27: 0.0625 | AR27: 0.0625 | AS27: 0.03125 | AT27: 0.03125 | AU27: 0.03125 | AV27: 0.03125 | AW27: 0.03125 | AX27: 0.03125 | AY27: 0.015625 | AZ27: 0.015625 | BA27: 0.015625 | BB27: 0.015625 | BC27: 0.015625 | BD27: 0.0078125 | BE27: 0.0078125 | BF27: 0.0078125 | BG27: 0.0078125 | BH27: 0.00390625 | BI27: 0.00390625 | BJ27: 0.00390625 | BK27: 0.001953125 | BL27: 0.001953125 | BM27: 0.0009765625
B28: 9 | C28: 2019 | D28: 24 | E28: 10 | G28: -0.07493377239 | H28: -1.196494779 | I28: 0.1157517674 | K28: 0.5 | L28: 0.5 | M28: 0.5 | N28: 0.5 | O28: 0.5 | P28: 0.5 | Q28: 0.5 | R28: 0.5 | S28: 1 | T28: 0.5 | U28: 0.25 | V28: 0.25 | W28: 0.25 | X28: 0.25 | Y28: 0.25 | Z28: 0.25 | AA28: 0.25 | AB28: 0.25 | AC28: 0.25 | AD28: 0.125 | AE28: 0.125 | AF28: 0.125 | AG28: 0.125 | AH28: 0.125 | AI28: 0.125 | AJ28: 0.125 | AK28: 0.125 | AL28: 0.0625 | AM28: 0.0625 | AN28: 0.0625 | AO28: 0.0625 | AP28: 0.0625 | AQ28: 0.0625 | AR28: 0.0625 | AS28: 0.03125 | AT28: 0.03125 | AU28: 0.03125 | AV28: 0.03125 | AW28: 0.03125 | AX28: 0.03125 | AY28: 0.015625 | AZ28: 0.015625 | BA28: 0.015625 | BB28: 0.015625 | BC28: 0.015625 | BD28: 0.0078125 | BE28: 0.0078125 | BF28: 0.0078125 | BG28: 0.0078125 | BH28: 0.00390625 | BI28: 0.00390625 | BJ28: 0.00390625 | BK28: 0.001953125 | BL28: 0.001953125 | BM28: 0.0009765625
B29: 10 | C29: 2020 | D29: 12 | E29: 10 | G29: -0.687178529 | H29: -1.655852913 | I29: 0.0488758046 | K29: 0.5 | L29: 0.5 | M29: 0.5 | N29: 0.5 | O29: 0.5 | P29: 0.5 | Q29: 0.5 | R29: 0.5 | S29: 0.5 | T29: 1 | U29: 0.25 | V29: 0.25 | W29: 0.25 | X29: 0.25 | Y29: 0.25 | Z29: 0.25 | AA29: 0.25 | AB29: 0.25 | AC29: 0.25 | AD29: 0.125 | AE29: 0.125 | AF29: 0.125 | AG29: 0.125 | AH29: 0.125 | AI29: 0.125 | AJ29: 0.125 | AK29: 0.125 | AL29: 0.0625 | AM29: 0.0625 | AN29: 0.0625 | AO29: 0.0625 | AP29: 0.0625 | AQ29: 0.0625 | AR29: 0.0625 | AS29: 0.03125 | AT29: 0.03125 | AU29: 0.03125 | AV29: 0.03125 | AW29: 0.03125 | AX29: 0.03125 | AY29: 0.015625 | AZ29: 0.015625 | BA29: 0.015625 | BB29: 0.015625 | BC29: 0.015625 | BD29: 0.0078125 | BE29: 0.0078125 | BF29: 0.0078125 | BG29: 0.0078125 | BH29: 0.00390625 | BI29: 0.00390625 | BJ29: 0.00390625 | BK29: 0.001953125 | BL29: 0.001953125 | BM29: 0.0009765625
B30: 11 | C30: 2011 | D30: 108 | E30: 9 | G30: -1.685818977 | H30: -2.183424712 | I30: 0.01450227387 | K30: =IF($B30=K$17,1,$D$6^(1+ABS($E30-K$18))) -> 0.25 | L30: 0.25 | M30: 0.25 | N30: 0.25 | O30: 0.25 | P30: 0.25 | Q30: 0.25 | R30: 0.25 | S30: 0.25 | T30: 0.25 | U30: =IF($B30=U$17,1,$D$6^(1+ABS($E30-U$18))) -> 1 | V30: 0.5 | W30: 0.5 | X30: 0.5 | Y30: 0.5 | Z30: 0.5 | AA30: 0.5 | AB30: 0.5 | AC30: 0.5 | AD30: 0.25 | AE30: =IF($B30=AE$17,1,$D$6^(1+ABS($E30-AE$18))) -> 0.25 | AF30: 0.25 | AG30: 0.25 | AH30: 0.25 | AI30: 0.25 | AJ30: 0.25 | AK30: 0.25 | AL30: 0.125 | AM30: 0.125 | AN30: 0.125 | AO30: =IF($B30=AO$17,1,$D$6^(1+ABS($E30-AO$18))) -> 0.125 | AP30: 0.125 | AQ30: 0.125 | AR30: 0.125 | AS30: 0.0625 | AT30: 0.0625 | AU30: 0.0625 | AV30: 0.0625 | AW30: 0.0625 | AX30: 0.0625 | AY30: =IF($B30=AY$17,1,$D$6^(1+ABS($E30-AY$18))) -> 0.03125 | AZ30: 0.03125 | BA30: 0.03125 | BB30: 0.03125 | BC30: 0.03125 | BD30: 0.015625 | BE30: 0.015625 | BF30: 0.015625 | BG30: 0.015625 | BH30: 0.0078125 | BI30: 0.0078125 | BJ30: 0.0078125 | BK30: 0.00390625 | BL30: 0.00390625 | BM30: 0.001953125
B31: 12 | C31: 2012 | D31: 96 | E31: 9 | G31: 0.05583831055 | H31: -1.240798697 | I31: 0.1073400614 | K31: 0.25 | L31: 0.25 | M31: 0.25 | N31: 0.25 | O31: 0.25 | P31: 0.25 | Q31: 0.25 | R31: 0.25 | S31: 0.25 | T31: 0.25 | U31: 0.5 | V31: 1 | W31: 0.5 | X31: 0.5 | Y31: 0.5 | Z31: 0.5 | AA31: 0.5 | AB31: 0.5 | AC31: 0.5 | AD31: 0.25 | AE31: 0.25 | AF31: 0.25 | AG31: 0.25 | AH31: 0.25 | AI31: 0.25 | AJ31: 0.25 | AK31: 0.25 | AL31: 0.125 | AM31: 0.125 | AN31: 0.125 | AO31: 0.125 | AP31: 0.125 | AQ31: 0.125 | AR31: 0.125 | AS31: 0.0625 | AT31: 0.0625 | AU31: 0.0625 | AV31: 0.0625 | AW31: 0.0625 | AX31: 0.0625 | AY31: 0.03125 | AZ31: 0.03125 | BA31: 0.03125 | BB31: 0.03125 | BC31: 0.03125 | BD31: 0.015625 | BE31: 0.015625 | BF31: 0.015625 | BG31: 0.015625 | BH31: 0.0078125 | BI31: 0.0078125 | BJ31: 0.0078125 | BK31: 0.00390625 | BL31: 0.00390625 | BM31: 0.001953125
B32: 13 | C32: 2013 | D32: 84 | E32: 9 | G32: -0.2524746636 | H32: -1.477579701 | I32: 0.06976015546 | K32: 0.25 | L32: 0.25 | M32: 0.25 | N32: 0.25 | O32: 0.25 | P32: 0.25 | Q32: 0.25 | R32: 0.25 | S32: 0.25 | T32: 0.25 | U32: 0.5 | V32: 0.5 | W32: 1 | X32: 0.5 | Y32: 0.5 | Z32: 0.5 | AA32: 0.5 | AB32: 0.5 | AC32: 0.5 | AD32: 0.25 | AE32: 0.25 | AF32: 0.25 | AG32: 0.25 | AH32: 0.25 | AI32: 0.25 | AJ32: 0.25 | AK32: 0.25 | AL32: 0.125 | AM32: 0.125 | AN32: 0.125 | AO32: 0.125 | AP32: 0.125 | AQ32: 0.125 | AR32: 0.125 | AS32: 0.0625 | AT32: 0.0625 | AU32: 0.0625 | AV32: 0.0625 | AW32: 0.0625 | AX32: 0.0625 | AY32: 0.03125 | AZ32: 0.03125 | BA32: 0.03125 | BB32: 0.03125 | BC32: 0.03125 | BD32: 0.015625 | BE32: 0.015625 | BF32: 0.015625 | BG32: 0.015625 | BH32: 0.0078125 | BI32: 0.0078125 | BJ32: 0.0078125 | BK32: 0.00390625 | BL32: 0.00390625 | BM32: 0.001953125
B33: 14 | C33: 2014 | D33: 72 | E33: 9 | G33: 1.725335587 | H33: 0.03340668187 | I33: 0.5133248594 | K33: 0.25 | L33: 0.25 | M33: 0.25 | N33: 0.25 | O33: 0.25 | P33: 0.25 | Q33: 0.25 | R33: 0.25 | S33: 0.25 | T33: 0.25 | U33: 0.5 | V33: 0.5 | W33: 0.5 | X33: 1 | Y33: 0.5 | Z33: 0.5 | AA33: 0.5 | AB33: 0.5 | AC33: 0.5 | AD33: 0.25 | AE33: 0.25 | AF33: 0.25 | AG33: 0.25 | AH33: 0.25 | AI33: 0.25 | AJ33: 0.25 | AK33: 0.25 | AL33: 0.125 | AM33: 0.125 | AN33: 0.125 | AO33: 0.125 | AP33: 0.125 | AQ33: 0.125 | AR33: 0.125 | AS33: 0.0625 | AT33: 0.0625 | AU33: 0.0625 | AV33: 0.0625 | AW33: 0.0625 | AX33: 0.0625 | AY33: 0.03125 | AZ33: 0.03125 | BA33: 0.03125 | BB33: 0.03125 | BC33: 0.03125 | BD33: 0.015625 | BE33: 0.015625 | BF33: 0.015625 | BG33: 0.015625 | BH33: 0.0078125 | BI33: 0.0078125 | BJ33: 0.0078125 | BK33: 0.00390625 | BL33: 0.00390625 | BM33: 0.001953125
B34: 15 | C34: 2015 | D34: 60 | E34: 9 | G34: -0.1058798021 | H34: -1.146976552 | I34: 0.1256956559 | K34: 0.25 | L34: 0.25 | M34: 0.25 | N34: 0.25 | O34: 0.25 | P34: 0.25 | Q34: 0.25 | R34: 0.25 | S34: 0.25 | T34: 0.25 | U34: 0.5 | V34: 0.5 | W34: 0.5 | X34: 0.5 | Y34: 1 | Z34: 0.5 | AA34: 0.5 | AB34: 0.5 | AC34: 0.5 | AD34: 0.25 | AE34: 0.25 | AF34: 0.25 | AG34: 0.25 | AH34: 0.25 | AI34: 0.25 | AJ34: 0.25 | AK34: 0.25 | AL34: 0.125 | AM34: 0.125 | AN34: 0.125 | AO34: 0.125 | AP34: 0.125 | AQ34: 0.125 | AR34: 0.125 | AS34: 0.0625 | AT34: 0.0625 | AU34: 0.0625 | AV34: 0.0625 | AW34: 0.0625 | AX34: 0.0625 | AY34: 0.03125 | AZ34: 0.03125 | BA34: 0.03125 | BB34: 0.03125 | BC34: 0.03125 | BD34: 0.015625 | BE34: 0.015625 | BF34: 0.015625 | BG34: 0.015625 | BH34: 0.0078125 | BI34: 0.0078125 | BJ34: 0.0078125 | BK34: 0.00390625 | BL34: 0.00390625 | BM34: 0.001953125
B35: 16 | C35: 2016 | D35: 48 | E35: 9 | G35: 1.513848901 | H35: 0.07404271083 | I35: 0.5295117999 | K35: 0.25 | L35: 0.25 | M35: 0.25 | N35: 0.25 | O35: 0.25 | P35: 0.25 | Q35: 0.25 | R35: 0.25 | S35: 0.25 | T35: 0.25 | U35: 0.5 | V35: 0.5 | W35: 0.5 | X35: 0.5 | Y35: 0.5 | Z35: 1 | AA35: 0.5 | AB35: 0.5 | AC35: 0.5 | AD35: 0.25 | AE35: 0.25 | AF35: 0.25 | AG35: 0.25 | AH35: 0.25 | AI35: 0.25 | AJ35: 0.25 | AK35: 0.25 | AL35: 0.125 | AM35: 0.125 | AN35: 0.125 | AO35: 0.125 | AP35: 0.125 | AQ35: 0.125 | AR35: 0.125 | AS35: 0.0625 | AT35: 0.0625 | AU35: 0.0625 | AV35: 0.0625 | AW35: 0.0625 | AX35: 0.0625 | AY35: 0.03125 | AZ35: 0.03125 | BA35: 0.03125 | BB35: 0.03125 | BC35: 0.03125 | BD35: 0.015625 | BE35: 0.015625 | BF35: 0.015625 | BG35: 0.015625 | BH35: 0.0078125 | BI35: 0.0078125 | BJ35: 0.0078125 | BK35: 0.00390625 | BL35: 0.00390625 | BM35: 0.001953125
B36: 17 | C36: 2017 | D36: 36 | E36: 9 | G36: 0.4854205978 | H36: -0.5543110268 | I36: 0.2896830026 | K36: 0.25 | L36: 0.25 | M36: 0.25 | N36: 0.25 | O36: 0.25 | P36: 0.25 | Q36: 0.25 | R36: 0.25 | S36: 0.25 | T36: 0.25 | U36: 0.5 | V36: 0.5 | W36: 0.5 | X36: 0.5 | Y36: 0.5 | Z36: 0.5 | AA36: 1 | AB36: 0.5 | AC36: 0.5 | AD36: 0.25 | AE36: 0.25 | AF36: 0.25 | AG36: 0.25 | AH36: 0.25 | AI36: 0.25 | AJ36: 0.25 | AK36: 0.25 | AL36: 0.125 | AM36: 0.125 | AN36: 0.125 | AO36: 0.125 | AP36: 0.125 | AQ36: 0.125 | AR36: 0.125 | AS36: 0.0625 | AT36: 0.0625 | AU36: 0.0625 | AV36: 0.0625 | AW36: 0.0625 | AX36: 0.0625 | AY36: 0.03125 | AZ36: 0.03125 | BA36: 0.03125 | BB36: 0.03125 | BC36: 0.03125 | BD36: 0.015625 | BE36: 0.015625 | BF36: 0.015625 | BG36: 0.015625 | BH36: 0.0078125 | BI36: 0.0078125 | BJ36: 0.0078125 | BK36: 0.00390625 | BL36: 0.00390625 | BM36: 0.001953125
B37: 18 | C37: 2018 | D37: 24 | E37: 9 | G37: 0.4042078816 | H37: -0.5736407186 | I37: 0.2831054758 | K37: 0.25 | L37: 0.25 | M37: 0.25 | N37: 0.25 | O37: 0.25 | P37: 0.25 | Q37: 0.25 | R37: 0.25 | S37: 0.25 | T37: 0.25 | U37: 0.5 | V37: 0.5 | W37: 0.5 | X37: 0.5 | Y37: 0.5 | Z37: 0.5 | AA37: 0.5 | AB37: 1 | AC37: 0.5 | AD37: 0.25 | AE37: 0.25 | AF37: 0.25 | AG37: 0.25 | AH37: 0.25 | AI37: 0.25 | AJ37: 0.25 | AK37: 0.25 | AL37: 0.125 | AM37: 0.125 | AN37: 0.125 | AO37: 0.125 | AP37: 0.125 | AQ37: 0.125 | AR37: 0.125 | AS37: 0.0625 | AT37: 0.0625 | AU37: 0.0625 | AV37: 0.0625 | AW37: 0.0625 | AX37: 0.0625 | AY37: 0.03125 | AZ37: 0.03125 | BA37: 0.03125 | BB37: 0.03125 | BC37: 0.03125 | BD37: 0.015625 | BE37: 0.015625 | BF37: 0.015625 | BG37: 0.015625 | BH37: 0.0078125 | BI37: 0.0078125 | BJ37: 0.0078125 | BK37: 0.00390625 | BL37: 0.00390625 | BM37: 0.001953125
B38: 19 | C38: 2019 | D38: 12 | E38: 9 | G38: -1.044660729 | H38: -1.621056214 | I38: 0.05250279165 | K38: 0.25 | L38: 0.25 | M38: 0.25 | N38: 0.25 | O38: 0.25 | P38: 0.25 | Q38: 0.25 | R38: 0.25 | S38: 0.25 | T38: 0.25 | U38: 0.5 | V38: 0.5 | W38: 0.5 | X38: 0.5 | Y38: 0.5 | Z38: 0.5 | AA38: 0.5 | AB38: 0.5 | AC38: 1 | AD38: 0.25 | AE38: 0.25 | AF38: 0.25 | AG38: 0.25 | AH38: 0.25 | AI38: 0.25 | AJ38: 0.25 | AK38: 0.25 | AL38: 0.125 | AM38: 0.125 | AN38: 0.125 | AO38: 0.125 | AP38: 0.125 | AQ38: 0.125 | AR38: 0.125 | AS38: 0.0625 | AT38: 0.0625 | AU38: 0.0625 | AV38: 0.0625 | AW38: 0.0625 | AX38: 0.0625 | AY38: 0.03125 | AZ38: 0.03125 | BA38: 0.03125 | BB38: 0.03125 | BC38: 0.03125 | BD38: 0.015625 | BE38: 0.015625 | BF38: 0.015625 | BG38: 0.015625 | BH38: 0.0078125 | BI38: 0.0078125 | BJ38: 0.0078125 | BK38: 0.00390625 | BL38: 0.00390625 | BM38: 0.001953125
B39: 20 | C39: 2011 | D39: 96 | E39: 8 | G39: 0.9148599852 | H39: 0.4021082006 | I39: 0.6561978011 | K39: 0.125 | L39: 0.125 | M39: 0.125 | N39: 0.125 | O39: 0.125 | P39: 0.125 | Q39: 0.125 | R39: 0.125 | S39: 0.125 | T39: 0.125 | U39: 0.25 | V39: 0.25 | W39: 0.25 | X39: 0.25 | Y39: 0.25 | Z39: 0.25 | AA39: 0.25 | AB39: 0.25 | AC39: 0.25 | AD39: 1 | AE39: 0.5 | AF39: 0.5 | AG39: 0.5 | AH39: 0.5 | AI39: 0.5 | AJ39: 0.5 | AK39: 0.5 | AL39: 0.25 | AM39: 0.25 | AN39: 0.25 | AO39: 0.25 | AP39: 0.25 | AQ39: 0.25 | AR39: 0.25 | AS39: 0.125 | AT39: 0.125 | AU39: 0.125 | AV39: 0.125 | AW39: 0.125 | AX39: 0.125 | AY39: 0.0625 | AZ39: 0.0625 | BA39: 0.0625 | BB39: 0.0625 | BC39: 0.0625 | BD39: 0.03125 | BE39: 0.03125 | BF39: 0.03125 | BG39: 0.03125 | BH39: 0.015625 | BI39: 0.015625 | BJ39: 0.015625 | BK39: 0.0078125 | BL39: 0.0078125 | BM39: 0.00390625
B40: 21 | C40: 2012 | D40: 84 | E40: 8 | G40: -0.001998289312 | H40: -0.08524027069 | I40: 0.4660351878 | K40: =IF($B40=K$17,1,$D$6^(1+ABS($E40-K$18))) -> 0.125 | L40: 0.125 | M40: 0.125 | N40: 0.125 | O40: 0.125 | P40: 0.125 | Q40: 0.125 | R40: 0.125 | S40: 0.125 | T40: 0.125 | U40: =IF($B40=U$17,1,$D$6^(1+ABS($E40-U$18))) -> 0.25 | V40: 0.25 | W40: 0.25 | X40: 0.25 | Y40: 0.25 | Z40: 0.25 | AA40: 0.25 | AB40: 0.25 | AC40: 0.25 | AD40: 0.5 | AE40: =IF($B40=AE$17,1,$D$6^(1+ABS($E40-AE$18))) -> 1 | AF40: 0.5 | AG40: 0.5 | AH40: 0.5 | AI40: 0.5 | AJ40: 0.5 | AK40: 0.5 | AL40: 0.25 | AM40: 0.25 | AN40: 0.25 | AO40: =IF($B40=AO$17,1,$D$6^(1+ABS($E40-AO$18))) -> 0.25 | AP40: 0.25 | AQ40: 0.25 | AR40: 0.25 | AS40: 0.125 | AT40: 0.125 | AU40: 0.125 | AV40: 0.125 | AW40: 0.125 | AX40: 0.125 | AY40: =IF($B40=AY$17,1,$D$6^(1+ABS($E40-AY$18))) -> 0.0625 | AZ40: 0.0625 | BA40: 0.0625 | BB40: 0.0625 | BC40: 0.0625 | BD40: 0.03125 | BE40: 0.03125 | BF40: 0.03125 | BG40: 0.03125 | BH40: 0.015625 | BI40: 0.015625 | BJ40: 0.015625 | BK40: 0.0078125 | BL40: 0.0078125 | BM40: 0.00390625
B41: 22 | C41: 2013 | D41: 72 | E41: 8 | G41: 0.3494182007 | H41: 0.1980613607 | I41: 0.5785014722 | K41: 0.125 | L41: 0.125 | M41: 0.125 | N41: 0.125 | O41: 0.125 | P41: 0.125 | Q41: 0.125 | R41: 0.125 | S41: 0.125 | T41: 0.125 | U41: 0.25 | V41: 0.25 | W41: 0.25 | X41: 0.25 | Y41: 0.25 | Z41: 0.25 | AA41: 0.25 | AB41: 0.25 | AC41: 0.25 | AD41: 0.5 | AE41: 0.5 | AF41: 1 | AG41: 0.5 | AH41: 0.5 | AI41: 0.5 | AJ41: 0.5 | AK41: 0.5 | AL41: 0.25 | AM41: 0.25 | AN41: 0.25 | AO41: 0.25 | AP41: 0.25 | AQ41: 0.25 | AR41: 0.25 | AS41: 0.125 | AT41: 0.125 | AU41: 0.125 | AV41: 0.125 | AW41: 0.125 | AX41: 0.125 | AY41: 0.0625 | AZ41: 0.0625 | BA41: 0.0625 | BB41: 0.0625 | BC41: 0.0625 | BD41: 0.03125 | BE41: 0.03125 | BF41: 0.03125 | BG41: 0.03125 | BH41: 0.015625 | BI41: 0.015625 | BJ41: 0.015625 | BK41: 0.0078125 | BL41: 0.0078125 | BM41: 0.00390625
B42: 23 | C42: 2014 | D42: 60 | E42: 8 | G42: -0.6701140404 | H42: -0.544482356 | I42: 0.2930547934 | K42: 0.125 | L42: 0.125 | M42: 0.125 | N42: 0.125 | O42: 0.125 | P42: 0.125 | Q42: 0.125 | R42: 0.125 | S42: 0.125 | T42: 0.125 | U42: 0.25 | V42: 0.25 | W42: 0.25 | X42: 0.25 | Y42: 0.25 | Z42: 0.25 | AA42: 0.25 | AB42: 0.25 | AC42: 0.25 | AD42: 0.5 | AE42: 0.5 | AF42: 0.5 | AG42: 1 | AH42: 0.5 | AI42: 0.5 | AJ42: 0.5 | AK42: 0.5 | AL42: 0.25 | AM42: 0.25 | AN42: 0.25 | AO42: 0.25 | AP42: 0.25 | AQ42: 0.25 | AR42: 0.25 | AS42: 0.125 | AT42: 0.125 | AU42: 0.125 | AV42: 0.125 | AW42: 0.125 | AX42: 0.125 | AY42: 0.0625 | AZ42: 0.0625 | BA42: 0.0625 | BB42: 0.0625 | BC42: 0.0625 | BD42: 0.03125 | BE42: 0.03125 | BF42: 0.03125 | BG42: 0.03125 | BH42: 0.015625 | BI42: 0.015625 | BJ42: 0.015625 | BK42: 0.0078125 | BL42: 0.0078125 | BM42: 0.00390625
B43: 24 | C43: 2015 | D43: 48 | E43: 8 | G43: -1.150886769 | H43: -1.005127425 | I43: 0.157417748 | K43: 0.125 | L43: 0.125 | M43: 0.125 | N43: 0.125 | O43: 0.125 | P43: 0.125 | Q43: 0.125 | R43: 0.125 | S43: 0.125 | T43: 0.125 | U43: 0.25 | V43: 0.25 | W43: 0.25 | X43: 0.25 | Y43: 0.25 | Z43: 0.25 | AA43: 0.25 | AB43: 0.25 | AC43: 0.25 | AD43: 0.5 | AE43: 0.5 | AF43: 0.5 | AG43: 0.5 | AH43: 1 | AI43: 0.5 | AJ43: 0.5 | AK43: 0.5 | AL43: 0.25 | AM43: 0.25 | AN43: 0.25 | AO43: 0.25 | AP43: 0.25 | AQ43: 0.25 | AR43: 0.25 | AS43: 0.125 | AT43: 0.125 | AU43: 0.125 | AV43: 0.125 | AW43: 0.125 | AX43: 0.125 | AY43: 0.0625 | AZ43: 0.0625 | BA43: 0.0625 | BB43: 0.0625 | BC43: 0.0625 | BD43: 0.03125 | BE43: 0.03125 | BF43: 0.03125 | BG43: 0.03125 | BH43: 0.015625 | BI43: 0.015625 | BJ43: 0.015625 | BK43: 0.0078125 | BL43: 0.0078125 | BM43: 0.00390625
B44: 25 | C44: 2016 | D44: 36 | E44: 8 | G44: 1.719742354 | H44: 1.050321635 | I44: 0.8532148693 | K44: 0.125 | L44: 0.125 | M44: 0.125 | N44: 0.125 | O44: 0.125 | P44: 0.125 | Q44: 0.125 | R44: 0.125 | S44: 0.125 | T44: 0.125 | U44: 0.25 | V44: 0.25 | W44: 0.25 | X44: 0.25 | Y44: 0.25 | Z44: 0.25 | AA44: 0.25 | AB44: 0.25 | AC44: 0.25 | AD44: 0.5 | AE44: 0.5 | AF44: 0.5 | AG44: 0.5 | AH44: 0.5 | AI44: 1 | AJ44: 0.5 | AK44: 0.5 | AL44: 0.25 | AM44: 0.25 | AN44: 0.25 | AO44: 0.25 | AP44: 0.25 | AQ44: 0.25 | AR44: 0.25 | AS44: 0.125 | AT44: 0.125 | AU44: 0.125 | AV44: 0.125 | AW44: 0.125 | AX44: 0.125 | AY44: 0.0625 | AZ44: 0.0625 | BA44: 0.0625 | BB44: 0.0625 | BC44: 0.0625 | BD44: 0.03125 | BE44: 0.03125 | BF44: 0.03125 | BG44: 0.03125 | BH44: 0.015625 | BI44: 0.015625 | BJ44: 0.015625 | BK44: 0.0078125 | BL44: 0.0078125 | BM44: 0.00390625
B45: 26 | C45: 2017 | D45: 24 | E45: 8 | G45: -0.5094148007 | H45: -0.4633766406 | I45: 0.3215472097 | K45: 0.125 | L45: 0.125 | M45: 0.125 | N45: 0.125 | O45: 0.125 | P45: 0.125 | Q45: 0.125 | R45: 0.125 | S45: 0.125 | T45: 0.125 | U45: 0.25 | V45: 0.25 | W45: 0.25 | X45: 0.25 | Y45: 0.25 | Z45: 0.25 | AA45: 0.25 | AB45: 0.25 | AC45: 0.25 | AD45: 0.5 | AE45: 0.5 | AF45: 0.5 | AG45: 0.5 | AH45: 0.5 | AI45: 0.5 | AJ45: 1 | AK45: 0.5 | AL45: 0.25 | AM45: 0.25 | AN45: 0.25 | AO45: 0.25 | AP45: 0.25 | AQ45: 0.25 | AR45: 0.25 | AS45: 0.125 | AT45: 0.125 | AU45: 0.125 | AV45: 0.125 | AW45: 0.125 | AX45: 0.125 | AY45: 0.0625 | AZ45: 0.0625 | BA45: 0.0625 | BB45: 0.0625 | BC45: 0.0625 | BD45: 0.03125 | BE45: 0.03125 | BF45: 0.03125 | BG45: 0.03125 | BH45: 0.015625 | BI45: 0.015625 | BJ45: 0.015625 | BK45: 0.0078125 | BL45: 0.0078125 | BM45: 0.00390625
B46: 27 | C46: 2018 | D46: 12 | E46: 8 | G46: -0.9831592535 | H46: -0.8615130982 | I46: 0.1944777552 | K46: 0.125 | L46: 0.125 | M46: 0.125 | N46: 0.125 | O46: 0.125 | P46: 0.125 | Q46: 0.125 | R46: 0.125 | S46: 0.125 | T46: 0.125 | U46: 0.25 | V46: 0.25 | W46: 0.25 | X46: 0.25 | Y46: 0.25 | Z46: 0.25 | AA46: 0.25 | AB46: 0.25 | AC46: 0.25 | AD46: 0.5 | AE46: 0.5 | AF46: 0.5 | AG46: 0.5 | AH46: 0.5 | AI46: 0.5 | AJ46: 0.5 | AK46: 1 | AL46: 0.25 | AM46: 0.25 | AN46: 0.25 | AO46: 0.25 | AP46: 0.25 | AQ46: 0.25 | AR46: 0.25 | AS46: 0.125 | AT46: 0.125 | AU46: 0.125 | AV46: 0.125 | AW46: 0.125 | AX46: 0.125 | AY46: 0.0625 | AZ46: 0.0625 | BA46: 0.0625 | BB46: 0.0625 | BC46: 0.0625 | BD46: 0.03125 | BE46: 0.03125 | BF46: 0.03125 | BG46: 0.03125 | BH46: 0.015625 | BI46: 0.015625 | BJ46: 0.015625 | BK46: 0.0078125 | BL46: 0.0078125 | BM46: 0.00390625
B47: 28 | C47: 2011 | D47: 84 | E47: 7 | G47: -1.928046618 | H47: -1.91972898 | I47: 0.02744607084 | K47: 0.0625 | L47: 0.0625 | M47: 0.0625 | N47: 0.0625 | O47: 0.0625 | P47: 0.0625 | Q47: 0.0625 | R47: 0.0625 | S47: 0.0625 | T47: 0.0625 | U47: 0.125 | V47: 0.125 | W47: 0.125 | X47: 0.125 | Y47: 0.125 | Z47: 0.125 | AA47: 0.125 | AB47: 0.125 | AC47: 0.125 | AD47: 0.25 | AE47: 0.25 | AF47: 0.25 | AG47: 0.25 | AH47: 0.25 | AI47: 0.25 | AJ47: 0.25 | AK47: 0.25 | AL47: 1 | AM47: 0.5 | AN47: 0.5 | AO47: 0.5 | AP47: 0.5 | AQ47: 0.5 | AR47: 0.5 | AS47: 0.25 | AT47: 0.25 | AU47: 0.25 | AV47: 0.25 | AW47: 0.25 | AX47: 0.25 | AY47: 0.125 | AZ47: 0.125 | BA47: 0.125 | BB47: 0.125 | BC47: 0.125 | BD47: 0.0625 | BE47: 0.0625 | BF47: 0.0625 | BG47: 0.0625 | BH47: 0.03125 | BI47: 0.03125 | BJ47: 0.03125 | BK47: 0.015625 | BL47: 0.015625 | BM47: 0.0078125
B48: 29 | C48: 2012 | D48: 72 | E48: 7 | G48: 0.7423457001 | H48: -0.2676833421 | I48: 0.3944715366 | K48: 0.0625 | L48: 0.0625 | M48: 0.0625 | N48: 0.0625 | O48: 0.0625 | P48: 0.0625 | Q48: 0.0625 | R48: 0.0625 | S48: 0.0625 | T48: 0.0625 | U48: 0.125 | V48: 0.125 | W48: 0.125 | X48: 0.125 | Y48: 0.125 | Z48: 0.125 | AA48: 0.125 | AB48: 0.125 | AC48: 0.125 | AD48: 0.25 | AE48: 0.25 | AF48: 0.25 | AG48: 0.25 | AH48: 0.25 | AI48: 0.25 | AJ48: 0.25 | AK48: 0.25 | AL48: 0.5 | AM48: 1 | AN48: 0.5 | AO48: 0.5 | AP48: 0.5 | AQ48: 0.5 | AR48: 0.5 | AS48: 0.25 | AT48: 0.25 | AU48: 0.25 | AV48: 0.25 | AW48: 0.25 | AX48: 0.25 | AY48: 0.125 | AZ48: 0.125 | BA48: 0.125 | BB48: 0.125 | BC48: 0.125 | BD48: 0.0625 | BE48: 0.0625 | BF48: 0.0625 | BG48: 0.0625 | BH48: 0.03125 | BI48: 0.03125 | BJ48: 0.03125 | BK48: 0.015625 | BL48: 0.015625 | BM48: 0.0078125
B49: 30 | C49: 2013 | D49: 60 | E49: 7 | G49: 0.2128544214 | H49: -0.533650316 | I49: 0.2967917448 | K49: 0.0625 | L49: 0.0625 | M49: 0.0625 | N49: 0.0625 | O49: 0.0625 | P49: 0.0625 | Q49: 0.0625 | R49: 0.0625 | S49: 0.0625 | T49: 0.0625 | U49: 0.125 | V49: 0.125 | W49: 0.125 | X49: 0.125 | Y49: 0.125 | Z49: 0.125 | AA49: 0.125 | AB49: 0.125 | AC49: 0.125 | AD49: 0.25 | AE49: 0.25 | AF49: 0.25 | AG49: 0.25 | AH49: 0.25 | AI49: 0.25 | AJ49: 0.25 | AK49: 0.25 | AL49: 0.5 | AM49: 0.5 | AN49: 1 | AO49: 0.5 | AP49: 0.5 | AQ49: 0.5 | AR49: 0.5 | AS49: 0.25 | AT49: 0.25 | AU49: 0.25 | AV49: 0.25 | AW49: 0.25 | AX49: 0.25 | AY49: 0.125 | AZ49: 0.125 | BA49: 0.125 | BB49: 0.125 | BC49: 0.125 | BD49: 0.0625 | BE49: 0.0625 | BF49: 0.0625 | BG49: 0.0625 | BH49: 0.03125 | BI49: 0.03125 | BJ49: 0.03125 | BK49: 0.015625 | BL49: 0.015625 | BM49: 0.0078125
B50: 31 | C50: 2014 | D50: 48 | E50: 7 | G50: 0.2737330995 | H50: -0.4504929417 | I50: 0.3261775212 | K50: =IF($B50=K$17,1,$D$6^(1+ABS($E50-K$18))) -> 0.0625 | L50: 0.0625 | M50: 0.0625 | N50: 0.0625 | O50: 0.0625 | P50: 0.0625 | Q50: 0.0625 | R50: 0.0625 | S50: 0.0625 | T50: 0.0625 | U50: =IF($B50=U$17,1,$D$6^(1+ABS($E50-U$18))) -> 0.125 | V50: 0.125 | W50: 0.125 | X50: 0.125 | Y50: 0.125 | Z50: 0.125 | AA50: 0.125 | AB50: 0.125 | AC50: 0.125 | AD50: 0.25 | AE50: =IF($B50=AE$17,1,$D$6^(1+ABS($E50-AE$18))) -> 0.25 | AF50: 0.25 | AG50: 0.25 | AH50: 0.25 | AI50: 0.25 | AJ50: 0.25 | AK50: 0.25 | AL50: 0.5 | AM50: 0.5 | AN50: 0.5 | AO50: =IF($B50=AO$17,1,$D$6^(1+ABS($E50-AO$18))) -> 1 | AP50: 0.5 | AQ50: 0.5 | AR50: 0.5 | AS50: 0.25 | AT50: 0.25 | AU50: 0.25 | AV50: 0.25 | AW50: 0.25 | AX50: 0.25 | AY50: =IF($B50=AY$17,1,$D$6^(1+ABS($E50-AY$18))) -> 0.125 | AZ50: 0.125 | BA50: 0.125 | BB50: 0.125 | BC50: 0.125 | BD50: 0.0625 | BE50: 0.0625 | BF50: 0.0625 | BG50: 0.0625 | BH50: 0.03125 | BI50: 0.03125 | BJ50: 0.03125 | BK50: 0.015625 | BL50: 0.015625 | BM50: 0.0078125
B51: 32 | C51: 2015 | D51: 36 | E51: 7 | G51: -0.9434363023 | H51: -1.352255903 | I51: 0.08814673283 | K51: 0.0625 | L51: 0.0625 | M51: 0.0625 | N51: 0.0625 | O51: 0.0625 | P51: 0.0625 | Q51: 0.0625 | R51: 0.0625 | S51: 0.0625 | T51: 0.0625 | U51: 0.125 | V51: 0.125 | W51: 0.125 | X51: 0.125 | Y51: 0.125 | Z51: 0.125 | AA51: 0.125 | AB51: 0.125 | AC51: 0.125 | AD51: 0.25 | AE51: 0.25 | AF51: 0.25 | AG51: 0.25 | AH51: 0.25 | AI51: 0.25 | AJ51: 0.25 | AK51: 0.25 | AL51: 0.5 | AM51: 0.5 | AN51: 0.5 | AO51: 0.5 | AP51: 1 | AQ51: 0.5 | AR51: 0.5 | AS51: 0.25 | AT51: 0.25 | AU51: 0.25 | AV51: 0.25 | AW51: 0.25 | AX51: 0.25 | AY51: 0.125 | AZ51: 0.125 | BA51: 0.125 | BB51: 0.125 | BC51: 0.125 | BD51: 0.0625 | BE51: 0.0625 | BF51: 0.0625 | BG51: 0.0625 | BH51: 0.03125 | BI51: 0.03125 | BJ51: 0.03125 | BK51: 0.015625 | BL51: 0.015625 | BM51: 0.0078125
B52: 33 | C52: 2016 | D52: 24 | E52: 7 | G52: -1.693260718 | H52: -2.029518503 | I52: 0.02120275317 | K52: 0.0625 | L52: 0.0625 | M52: 0.0625 | N52: 0.0625 | O52: 0.0625 | P52: 0.0625 | Q52: 0.0625 | R52: 0.0625 | S52: 0.0625 | T52: 0.0625 | U52: 0.125 | V52: 0.125 | W52: 0.125 | X52: 0.125 | Y52: 0.125 | Z52: 0.125 | AA52: 0.125 | AB52: 0.125 | AC52: 0.125 | AD52: 0.25 | AE52: 0.25 | AF52: 0.25 | AG52: 0.25 | AH52: 0.25 | AI52: 0.25 | AJ52: 0.25 | AK52: 0.25 | AL52: 0.5 | AM52: 0.5 | AN52: 0.5 | AO52: 0.5 | AP52: 0.5 | AQ52: 1 | AR52: 0.5 | AS52: 0.25 | AT52: 0.25 | AU52: 0.25 | AV52: 0.25 | AW52: 0.25 | AX52: 0.25 | AY52: 0.125 | AZ52: 0.125 | BA52: 0.125 | BB52: 0.125 | BC52: 0.125 | BD52: 0.0625 | BE52: 0.0625 | BF52: 0.0625 | BG52: 0.0625 | BH52: 0.03125 | BI52: 0.03125 | BJ52: 0.03125 | BK52: 0.015625 | BL52: 0.015625 | BM52: 0.0078125
B53: 34 | C53: 2017 | D53: 12 | E53: 7 | G53: -0.2804945127 | H53: -1.128896069 | I53: 0.1294708397 | K53: 0.0625 | L53: 0.0625 | M53: 0.0625 | N53: 0.0625 | O53: 0.0625 | P53: 0.0625 | Q53: 0.0625 | R53: 0.0625 | S53: 0.0625 | T53: 0.0625 | U53: 0.125 | V53: 0.125 | W53: 0.125 | X53: 0.125 | Y53: 0.125 | Z53: 0.125 | AA53: 0.125 | AB53: 0.125 | AC53: 0.125 | AD53: 0.25 | AE53: 0.25 | AF53: 0.25 | AG53: 0.25 | AH53: 0.25 | AI53: 0.25 | AJ53: 0.25 | AK53: 0.25 | AL53: 0.5 | AM53: 0.5 | AN53: 0.5 | AO53: 0.5 | AP53: 0.5 | AQ53: 0.5 | AR53: 1 | AS53: 0.25 | AT53: 0.25 | AU53: 0.25 | AV53: 0.25 | AW53: 0.25 | AX53: 0.25 | AY53: 0.125 | AZ53: 0.125 | BA53: 0.125 | BB53: 0.125 | BC53: 0.125 | BD53: 0.0625 | BE53: 0.0625 | BF53: 0.0625 | BG53: 0.0625 | BH53: 0.03125 | BI53: 0.03125 | BJ53: 0.03125 | BK53: 0.015625 | BL53: 0.015625 | BM53: 0.0078125
B54: 35 | C54: 2011 | D54: 72 | E54: 6 | G54: 1.155211251 | H54: 0.6184214079 | I54: 0.7318512052 | K54: 0.03125 | L54: 0.03125 | M54: 0.03125 | N54: 0.03125 | O54: 0.03125 | P54: 0.03125 | Q54: 0.03125 | R54: 0.03125 | S54: 0.03125 | T54: 0.03125 | U54: 0.0625 | V54: 0.0625 | W54: 0.0625 | X54: 0.0625 | Y54: 0.0625 | Z54: 0.0625 | AA54: 0.0625 | AB54: 0.0625 | AC54: 0.0625 | AD54: 0.125 | AE54: 0.125 | AF54: 0.125 | AG54: 0.125 | AH54: 0.125 | AI54: 0.125 | AJ54: 0.125 | AK54: 0.125 | AL54: 0.25 | AM54: 0.25 | AN54: 0.25 | AO54: 0.25 | AP54: 0.25 | AQ54: 0.25 | AR54: 0.25 | AS54: 1 | AT54: 0.5 | AU54: 0.5 | AV54: 0.5 | AW54: 0.5 | AX54: 0.5 | AY54: 0.25 | AZ54: 0.25 | BA54: 0.25 | BB54: 0.25 | BC54: 0.25 | BD54: 0.125 | BE54: 0.125 | BF54: 0.125 | BG54: 0.125 | BH54: 0.0625 | BI54: 0.0625 | BJ54: 0.0625 | BK54: 0.03125 | BL54: 0.03125 | BM54: 0.015625
B55: 36 | C55: 2012 | D55: 60 | E55: 6 | G55: 0.5292885125 | H55: 0.4550334093 | I55: 0.6754573982 | K55: 0.03125 | L55: 0.03125 | M55: 0.03125 | N55: 0.03125 | O55: 0.03125 | P55: 0.03125 | Q55: 0.03125 | R55: 0.03125 | S55: 0.03125 | T55: 0.03125 | U55: 0.0625 | V55: 0.0625 | W55: 0.0625 | X55: 0.0625 | Y55: 0.0625 | Z55: 0.0625 | AA55: 0.0625 | AB55: 0.0625 | AC55: 0.0625 | AD55: 0.125 | AE55: 0.125 | AF55: 0.125 | AG55: 0.125 | AH55: 0.125 | AI55: 0.125 | AJ55: 0.125 | AK55: 0.125 | AL55: 0.25 | AM55: 0.25 | AN55: 0.25 | AO55: 0.25 | AP55: 0.25 | AQ55: 0.25 | AR55: 0.25 | AS55: 0.5 | AT55: 1 | AU55: 0.5 | AV55: 0.5 | AW55: 0.5 | AX55: 0.5 | AY55: 0.25 | AZ55: 0.25 | BA55: 0.25 | BB55: 0.25 | BC55: 0.25 | BD55: 0.125 | BE55: 0.125 | BF55: 0.125 | BG55: 0.125 | BH55: 0.0625 | BI55: 0.0625 | BJ55: 0.0625 | BK55: 0.03125 | BL55: 0.03125 | BM55: 0.015625
B56: 37 | C56: 2013 | D56: 48 | E56: 6 | G56: -0.3181859783 | H56: -0.1140363082 | I56: 0.4546045057 | K56: 0.03125 | L56: 0.03125 | M56: 0.03125 | N56: 0.03125 | O56: 0.03125 | P56: 0.03125 | Q56: 0.03125 | R56: 0.03125 | S56: 0.03125 | T56: 0.03125 | U56: 0.0625 | V56: 0.0625 | W56: 0.0625 | X56: 0.0625 | Y56: 0.0625 | Z56: 0.0625 | AA56: 0.0625 | AB56: 0.0625 | AC56: 0.0625 | AD56: 0.125 | AE56: 0.125 | AF56: 0.125 | AG56: 0.125 | AH56: 0.125 | AI56: 0.125 | AJ56: 0.125 | AK56: 0.125 | AL56: 0.25 | AM56: 0.25 | AN56: 0.25 | AO56: 0.25 | AP56: 0.25 | AQ56: 0.25 | AR56: 0.25 | AS56: 0.5 | AT56: 0.5 | AU56: 1 | AV56: 0.5 | AW56: 0.5 | AX56: 0.5 | AY56: 0.25 | AZ56: 0.25 | BA56: 0.25 | BB56: 0.25 | BC56: 0.25 | BD56: 0.125 | BE56: 0.125 | BF56: 0.125 | BG56: 0.125 | BH56: 0.0625 | BI56: 0.0625 | BJ56: 0.0625 | BK56: 0.03125 | BL56: 0.03125 | BM56: 0.015625
B57: 38 | C57: 2014 | D57: 36 | E57: 6 | G57: -1.447255245 | H57: -1.053663766 | I57: 0.1460184418 | K57: 0.03125 | L57: 0.03125 | M57: 0.03125 | N57: 0.03125 | O57: 0.03125 | P57: 0.03125 | Q57: 0.03125 | R57: 0.03125 | S57: 0.03125 | T57: 0.03125 | U57: 0.0625 | V57: 0.0625 | W57: 0.0625 | X57: 0.0625 | Y57: 0.0625 | Z57: 0.0625 | AA57: 0.0625 | AB57: 0.0625 | AC57: 0.0625 | AD57: 0.125 | AE57: 0.125 | AF57: 0.125 | AG57: 0.125 | AH57: 0.125 | AI57: 0.125 | AJ57: 0.125 | AK57: 0.125 | AL57: 0.25 | AM57: 0.25 | AN57: 0.25 | AO57: 0.25 | AP57: 0.25 | AQ57: 0.25 | AR57: 0.25 | AS57: 0.5 | AT57: 0.5 | AU57: 0.5 | AV57: 1 | AW57: 0.5 | AX57: 0.5 | AY57: 0.25 | AZ57: 0.25 | BA57: 0.25 | BB57: 0.25 | BC57: 0.25 | BD57: 0.125 | BE57: 0.125 | BF57: 0.125 | BG57: 0.125 | BH57: 0.0625 | BI57: 0.0625 | BJ57: 0.0625 | BK57: 0.03125 | BL57: 0.03125 | BM57: 0.015625
B58: 39 | C58: 2015 | D58: 24 | E58: 6 | G58: 0.1379910943 | H58: -0.02584427367 | I58: 0.4896907742 | K58: 0.03125 | L58: 0.03125 | M58: 0.03125 | N58: 0.03125 | O58: 0.03125 | P58: 0.03125 | Q58: 0.03125 | R58: 0.03125 | S58: 0.03125 | T58: 0.03125 | U58: 0.0625 | V58: 0.0625 | W58: 0.0625 | X58: 0.0625 | Y58: 0.0625 | Z58: 0.0625 | AA58: 0.0625 | AB58: 0.0625 | AC58: 0.0625 | AD58: 0.125 | AE58: 0.125 | AF58: 0.125 | AG58: 0.125 | AH58: 0.125 | AI58: 0.125 | AJ58: 0.125 | AK58: 0.125 | AL58: 0.25 | AM58: 0.25 | AN58: 0.25 | AO58: 0.25 | AP58: 0.25 | AQ58: 0.25 | AR58: 0.25 | AS58: 0.5 | AT58: 0.5 | AU58: 0.5 | AV58: 0.5 | AW58: 1 | AX58: 0.5 | AY58: 0.25 | AZ58: 0.25 | BA58: 0.25 | BB58: 0.25 | BC58: 0.25 | BD58: 0.125 | BE58: 0.125 | BF58: 0.125 | BG58: 0.125 | BH58: 0.0625 | BI58: 0.0625 | BJ58: 0.0625 | BK58: 0.03125 | BL58: 0.03125 | BM58: 0.015625
B59: 40 | C59: 2016 | D59: 12 | E59: 6 | G59: 1.497843522 | H59: 1.025009817 | I59: 0.8473207222 | K59: 0.03125 | L59: 0.03125 | M59: 0.03125 | N59: 0.03125 | O59: 0.03125 | P59: 0.03125 | Q59: 0.03125 | R59: 0.03125 | S59: 0.03125 | T59: 0.03125 | U59: 0.0625 | V59: 0.0625 | W59: 0.0625 | X59: 0.0625 | Y59: 0.0625 | Z59: 0.0625 | AA59: 0.0625 | AB59: 0.0625 | AC59: 0.0625 | AD59: 0.125 | AE59: 0.125 | AF59: 0.125 | AG59: 0.125 | AH59: 0.125 | AI59: 0.125 | AJ59: 0.125 | AK59: 0.125 | AL59: 0.25 | AM59: 0.25 | AN59: 0.25 | AO59: 0.25 | AP59: 0.25 | AQ59: 0.25 | AR59: 0.25 | AS59: 0.5 | AT59: 0.5 | AU59: 0.5 | AV59: 0.5 | AW59: 0.5 | AX59: 1 | AY59: 0.25 | AZ59: 0.25 | BA59: 0.25 | BB59: 0.25 | BC59: 0.25 | BD59: 0.125 | BE59: 0.125 | BF59: 0.125 | BG59: 0.125 | BH59: 0.0625 | BI59: 0.0625 | BJ59: 0.0625 | BK59: 0.03125 | BL59: 0.03125 | BM59: 0.015625
B60: 41 | C60: 2011 | D60: 60 | E60: 5 | G60: 1.469908861 | H60: 1.409037813 | I60: 0.9205880063 | K60: =IF($B60=K$17,1,$D$6^(1+ABS($E60-K$18))) -> 0.015625 | L60: 0.015625 | M60: 0.015625 | N60: 0.015625 | O60: 0.015625 | P60: 0.015625 | Q60: 0.015625 | R60: 0.015625 | S60: 0.015625 | T60: 0.015625 | U60: =IF($B60=U$17,1,$D$6^(1+ABS($E60-U$18))) -> 0.03125 | V60: 0.03125 | W60: 0.03125 | X60: 0.03125 | Y60: 0.03125 | Z60: 0.03125 | AA60: 0.03125 | AB60: 0.03125 | AC60: 0.03125 | AD60: 0.0625 | AE60: =IF($B60=AE$17,1,$D$6^(1+ABS($E60-AE$18))) -> 0.0625 | AF60: 0.0625 | AG60: 0.0625 | AH60: 0.0625 | AI60: 0.0625 | AJ60: 0.0625 | AK60: 0.0625 | AL60: 0.125 | AM60: 0.125 | AN60: 0.125 | AO60: =IF($B60=AO$17,1,$D$6^(1+ABS($E60-AO$18))) -> 0.125 | AP60: 0.125 | AQ60: 0.125 | AR60: 0.125 | AS60: 0.25 | AT60: 0.25 | AU60: 0.25 | AV60: 0.25 | AW60: 0.25 | AX60: 0.25 | AY60: =IF($B60=AY$17,1,$D$6^(1+ABS($E60-AY$18))) -> 1 | AZ60: 0.5 | BA60: 0.5 | BB60: 0.5 | BC60: 0.5 | BD60: 0.25 | BE60: 0.25 | BF60: 0.25 | BG60: 0.25 | BH60: 0.125 | BI60: 0.125 | BJ60: 0.125 | BK60: 0.0625 | BL60: 0.0625 | BM60: 0.03125
B61: 42 | C61: 2012 | D61: 48 | E61: 5 | G61: -1.767127311 | H61: -0.8682974091 | I61: 0.1926157701 | K61: 0.015625 | L61: 0.015625 | M61: 0.015625 | N61: 0.015625 | O61: 0.015625 | P61: 0.015625 | Q61: 0.015625 | R61: 0.015625 | S61: 0.015625 | T61: 0.015625 | U61: 0.03125 | V61: 0.03125 | W61: 0.03125 | X61: 0.03125 | Y61: 0.03125 | Z61: 0.03125 | AA61: 0.03125 | AB61: 0.03125 | AC61: 0.03125 | AD61: 0.0625 | AE61: 0.0625 | AF61: 0.0625 | AG61: 0.0625 | AH61: 0.0625 | AI61: 0.0625 | AJ61: 0.0625 | AK61: 0.0625 | AL61: 0.125 | AM61: 0.125 | AN61: 0.125 | AO61: 0.125 | AP61: 0.125 | AQ61: 0.125 | AR61: 0.125 | AS61: 0.25 | AT61: 0.25 | AU61: 0.25 | AV61: 0.25 | AW61: 0.25 | AX61: 0.25 | AY61: 0.5 | AZ61: 1 | BA61: 0.5 | BB61: 0.5 | BC61: 0.5 | BD61: 0.25 | BE61: 0.25 | BF61: 0.25 | BG61: 0.25 | BH61: 0.125 | BI61: 0.125 | BJ61: 0.125 | BK61: 0.0625 | BL61: 0.0625 | BM61: 0.03125
B62: 43 | C62: 2013 | D62: 36 | E62: 5 | G62: 0.9995570697 | H62: 0.9806732635 | I62: 0.8366230537 | K62: 0.015625 | L62: 0.015625 | M62: 0.015625 | N62: 0.015625 | O62: 0.015625 | P62: 0.015625 | Q62: 0.015625 | R62: 0.015625 | S62: 0.015625 | T62: 0.015625 | U62: 0.03125 | V62: 0.03125 | W62: 0.03125 | X62: 0.03125 | Y62: 0.03125 | Z62: 0.03125 | AA62: 0.03125 | AB62: 0.03125 | AC62: 0.03125 | AD62: 0.0625 | AE62: 0.0625 | AF62: 0.0625 | AG62: 0.0625 | AH62: 0.0625 | AI62: 0.0625 | AJ62: 0.0625 | AK62: 0.0625 | AL62: 0.125 | AM62: 0.125 | AN62: 0.125 | AO62: 0.125 | AP62: 0.125 | AQ62: 0.125 | AR62: 0.125 | AS62: 0.25 | AT62: 0.25 | AU62: 0.25 | AV62: 0.25 | AW62: 0.25 | AX62: 0.25 | AY62: 0.5 | AZ62: 0.5 | BA62: 1 | BB62: 0.5 | BC62: 0.5 | BD62: 0.25 | BE62: 0.25 | BF62: 0.25 | BG62: 0.25 | BH62: 0.125 | BI62: 0.125 | BJ62: 0.125 | BK62: 0.0625 | BL62: 0.0625 | BM62: 0.03125
B63: 44 | C63: 2014 | D63: 24 | E63: 5 | G63: -1.322536076 | H63: -0.67676464 | I63: 0.2492776483 | K63: 0.015625 | L63: 0.015625 | M63: 0.015625 | N63: 0.015625 | O63: 0.015625 | P63: 0.015625 | Q63: 0.015625 | R63: 0.015625 | S63: 0.015625 | T63: 0.015625 | U63: 0.03125 | V63: 0.03125 | W63: 0.03125 | X63: 0.03125 | Y63: 0.03125 | Z63: 0.03125 | AA63: 0.03125 | AB63: 0.03125 | AC63: 0.03125 | AD63: 0.0625 | AE63: 0.0625 | AF63: 0.0625 | AG63: 0.0625 | AH63: 0.0625 | AI63: 0.0625 | AJ63: 0.0625 | AK63: 0.0625 | AL63: 0.125 | AM63: 0.125 | AN63: 0.125 | AO63: 0.125 | AP63: 0.125 | AQ63: 0.125 | AR63: 0.125 | AS63: 0.25 | AT63: 0.25 | AU63: 0.25 | AV63: 0.25 | AW63: 0.25 | AX63: 0.25 | AY63: 0.5 | AZ63: 0.5 | BA63: 0.5 | BB63: 1 | BC63: 0.5 | BD63: 0.25 | BE63: 0.25 | BF63: 0.25 | BG63: 0.25 | BH63: 0.125 | BI63: 0.125 | BJ63: 0.125 | BK63: 0.0625 | BL63: 0.0625 | BM63: 0.03125
B64: 45 | C64: 2015 | D64: 12 | E64: 5 | G64: -0.3122344643 | H64: -0.07568969953 | I64: 0.4698329855 | K64: 0.015625 | L64: 0.015625 | M64: 0.015625 | N64: 0.015625 | O64: 0.015625 | P64: 0.015625 | Q64: 0.015625 | R64: 0.015625 | S64: 0.015625 | T64: 0.015625 | U64: 0.03125 | V64: 0.03125 | W64: 0.03125 | X64: 0.03125 | Y64: 0.03125 | Z64: 0.03125 | AA64: 0.03125 | AB64: 0.03125 | AC64: 0.03125 | AD64: 0.0625 | AE64: 0.0625 | AF64: 0.0625 | AG64: 0.0625 | AH64: 0.0625 | AI64: 0.0625 | AJ64: 0.0625 | AK64: 0.0625 | AL64: 0.125 | AM64: 0.125 | AN64: 0.125 | AO64: 0.125 | AP64: 0.125 | AQ64: 0.125 | AR64: 0.125 | AS64: 0.25 | AT64: 0.25 | AU64: 0.25 | AV64: 0.25 | AW64: 0.25 | AX64: 0.25 | AY64: 0.5 | AZ64: 0.5 | BA64: 0.5 | BB64: 0.5 | BC64: 1 | BD64: 0.25 | BE64: 0.25 | BF64: 0.25 | BG64: 0.25 | BH64: 0.125 | BI64: 0.125 | BJ64: 0.125 | BK64: 0.0625 | BL64: 0.0625 | BM64: 0.03125
B65: 46 | C65: 2011 | D65: 48 | E65: 4 | G65: 0.002013645174 | H65: 0.06527392938 | I65: 0.5260220503 | K65: 0.0078125 | L65: 0.0078125 | M65: 0.0078125 | N65: 0.0078125 | O65: 0.0078125 | P65: 0.0078125 | Q65: 0.0078125 | R65: 0.0078125 | S65: 0.0078125 | T65: 0.0078125 | U65: 0.015625 | V65: 0.015625 | W65: 0.015625 | X65: 0.015625 | Y65: 0.015625 | Z65: 0.015625 | AA65: 0.015625 | AB65: 0.015625 | AC65: 0.015625 | AD65: 0.03125 | AE65: 0.03125 | AF65: 0.03125 | AG65: 0.03125 | AH65: 0.03125 | AI65: 0.03125 | AJ65: 0.03125 | AK65: 0.03125 | AL65: 0.0625 | AM65: 0.0625 | AN65: 0.0625 | AO65: 0.0625 | AP65: 0.0625 | AQ65: 0.0625 | AR65: 0.0625 | AS65: 0.125 | AT65: 0.125 | AU65: 0.125 | AV65: 0.125 | AW65: 0.125 | AX65: 0.125 | AY65: 0.25 | AZ65: 0.25 | BA65: 0.25 | BB65: 0.25 | BC65: 0.25 | BD65: 1 | BE65: 0.5 | BF65: 0.5 | BG65: 0.5 | BH65: 0.25 | BI65: 0.25 | BJ65: 0.25 | BK65: 0.125 | BL65: 0.125 | BM65: 0.0625
B66: 47 | C66: 2012 | D66: 36 | E66: 4 | G66: 1.202973525 | H66: 1.085424023 | I66: 0.8611330514 | K66: 0.0078125 | L66: 0.0078125 | M66: 0.0078125 | N66: 0.0078125 | O66: 0.0078125 | P66: 0.0078125 | Q66: 0.0078125 | R66: 0.0078125 | S66: 0.0078125 | T66: 0.0078125 | U66: 0.015625 | V66: 0.015625 | W66: 0.015625 | X66: 0.015625 | Y66: 0.015625 | Z66: 0.015625 | AA66: 0.015625 | AB66: 0.015625 | AC66: 0.015625 | AD66: 0.03125 | AE66: 0.03125 | AF66: 0.03125 | AG66: 0.03125 | AH66: 0.03125 | AI66: 0.03125 | AJ66: 0.03125 | AK66: 0.03125 | AL66: 0.0625 | AM66: 0.0625 | AN66: 0.0625 | AO66: 0.0625 | AP66: 0.0625 | AQ66: 0.0625 | AR66: 0.0625 | AS66: 0.125 | AT66: 0.125 | AU66: 0.125 | AV66: 0.125 | AW66: 0.125 | AX66: 0.125 | AY66: 0.25 | AZ66: 0.25 | BA66: 0.25 | BB66: 0.25 | BC66: 0.25 | BD66: 0.5 | BE66: 1 | BF66: 0.5 | BG66: 0.5 | BH66: 0.25 | BI66: 0.25 | BJ66: 0.25 | BK66: 0.125 | BL66: 0.125 | BM66: 0.0625
B67: 48 | C67: 2013 | D67: 24 | E67: 4 | G67: 0.07839266054 | H67: 0.4402348177 | I67: 0.6701164776 | K67: 0.0078125 | L67: 0.0078125 | M67: 0.0078125 | N67: 0.0078125 | O67: 0.0078125 | P67: 0.0078125 | Q67: 0.0078125 | R67: 0.0078125 | S67: 0.0078125 | T67: 0.0078125 | U67: 0.015625 | V67: 0.015625 | W67: 0.015625 | X67: 0.015625 | Y67: 0.015625 | Z67: 0.015625 | AA67: 0.015625 | AB67: 0.015625 | AC67: 0.015625 | AD67: 0.03125 | AE67: 0.03125 | AF67: 0.03125 | AG67: 0.03125 | AH67: 0.03125 | AI67: 0.03125 | AJ67: 0.03125 | AK67: 0.03125 | AL67: 0.0625 | AM67: 0.0625 | AN67: 0.0625 | AO67: 0.0625 | AP67: 0.0625 | AQ67: 0.0625 | AR67: 0.0625 | AS67: 0.125 | AT67: 0.125 | AU67: 0.125 | AV67: 0.125 | AW67: 0.125 | AX67: 0.125 | AY67: 0.25 | AZ67: 0.25 | BA67: 0.25 | BB67: 0.25 | BC67: 0.25 | BD67: 0.5 | BE67: 0.5 | BF67: 1 | BG67: 0.5 | BH67: 0.25 | BI67: 0.25 | BJ67: 0.25 | BK67: 0.125 | BL67: 0.125 | BM67: 0.0625
B68: 49 | C68: 2014 | D68: 12 | E68: 4 | G68: 0.9400574985 | H68: 1.130263755 | I68: 0.8708174489 | K68: 0.0078125 | L68: 0.0078125 | M68: 0.0078125 | N68: 0.0078125 | O68: 0.0078125 | P68: 0.0078125 | Q68: 0.0078125 | R68: 0.0078125 | S68: 0.0078125 | T68: 0.0078125 | U68: 0.015625 | V68: 0.015625 | W68: 0.015625 | X68: 0.015625 | Y68: 0.015625 | Z68: 0.015625 | AA68: 0.015625 | AB68: 0.015625 | AC68: 0.015625 | AD68: 0.03125 | AE68: 0.03125 | AF68: 0.03125 | AG68: 0.03125 | AH68: 0.03125 | AI68: 0.03125 | AJ68: 0.03125 | AK68: 0.03125 | AL68: 0.0625 | AM68: 0.0625 | AN68: 0.0625 | AO68: 0.0625 | AP68: 0.0625 | AQ68: 0.0625 | AR68: 0.0625 | AS68: 0.125 | AT68: 0.125 | AU68: 0.125 | AV68: 0.125 | AW68: 0.125 | AX68: 0.125 | AY68: 0.25 | AZ68: 0.25 | BA68: 0.25 | BB68: 0.25 | BC68: 0.25 | BD68: 0.5 | BE68: 0.5 | BF68: 0.5 | BG68: 1 | BH68: 0.25 | BI68: 0.25 | BJ68: 0.25 | BK68: 0.125 | BL68: 0.125 | BM68: 0.0625
B69: 50 | C69: 2011 | D69: 36 | E69: 3 | G69: -0.4495862614 | H69: -0.1602275996 | I69: 0.4363508945 | K69: 0.00390625 | L69: 0.00390625 | M69: 0.00390625 | N69: 0.00390625 | O69: 0.00390625 | P69: 0.00390625 | Q69: 0.00390625 | R69: 0.00390625 | S69: 0.00390625 | T69: 0.00390625 | U69: 0.0078125 | V69: 0.0078125 | W69: 0.0078125 | X69: 0.0078125 | Y69: 0.0078125 | Z69: 0.0078125 | AA69: 0.0078125 | AB69: 0.0078125 | AC69: 0.0078125 | AD69: 0.015625 | AE69: 0.015625 | AF69: 0.015625 | AG69: 0.015625 | AH69: 0.015625 | AI69: 0.015625 | AJ69: 0.015625 | AK69: 0.015625 | AL69: 0.03125 | AM69: 0.03125 | AN69: 0.03125 | AO69: 0.03125 | AP69: 0.03125 | AQ69: 0.03125 | AR69: 0.03125 | AS69: 0.0625 | AT69: 0.0625 | AU69: 0.0625 | AV69: 0.0625 | AW69: 0.0625 | AX69: 0.0625 | AY69: 0.125 | AZ69: 0.125 | BA69: 0.125 | BB69: 0.125 | BC69: 0.125 | BD69: 0.25 | BE69: 0.25 | BF69: 0.25 | BG69: 0.25 | BH69: 1 | BI69: 0.5 | BJ69: 0.5 | BK69: 0.25 | BL69: 0.25 | BM69: 0.125
B70: 51 | C70: 2012 | D70: 24 | E70: 3 | G70: -0.3489607926 | H70: -0.2195878565 | I70: 0.4130960749 | K70: 0.00390625 | L70: 0.00390625 | M70: 0.00390625 | N70: 0.00390625 | O70: 0.00390625 | P70: 0.00390625 | Q70: 0.00390625 | R70: 0.00390625 | S70: 0.00390625 | T70: 0.00390625 | U70: 0.0078125 | V70: 0.0078125 | W70: 0.0078125 | X70: 0.0078125 | Y70: 0.0078125 | Z70: 0.0078125 | AA70: 0.0078125 | AB70: 0.0078125 | AC70: 0.0078125 | AD70: 0.015625 | AE70: 0.015625 | AF70: 0.015625 | AG70: 0.015625 | AH70: 0.015625 | AI70: 0.015625 | AJ70: 0.015625 | AK70: 0.015625 | AL70: 0.03125 | AM70: 0.03125 | AN70: 0.03125 | AO70: 0.03125 | AP70: 0.03125 | AQ70: 0.03125 | AR70: 0.03125 | AS70: 0.0625 | AT70: 0.0625 | AU70: 0.0625 | AV70: 0.0625 | AW70: 0.0625 | AX70: 0.0625 | AY70: 0.125 | AZ70: 0.125 | BA70: 0.125 | BB70: 0.125 | BC70: 0.125 | BD70: 0.25 | BE70: 0.25 | BF70: 0.25 | BG70: 0.25 | BH70: 0.5 | BI70: 1 | BJ70: 0.5 | BK70: 0.25 | BL70: 0.25 | BM70: 0.125
B71: 52 | C71: 2013 | D71: 12 | E71: 3 | G71: -0.181793266 | H71: -0.1612001734 | I71: 0.4359678723 | K71: 0.00390625 | L71: 0.00390625 | M71: 0.00390625 | N71: 0.00390625 | O71: 0.00390625 | P71: 0.00390625 | Q71: 0.00390625 | R71: 0.00390625 | S71: 0.00390625 | T71: 0.00390625 | U71: 0.0078125 | V71: 0.0078125 | W71: 0.0078125 | X71: 0.0078125 | Y71: 0.0078125 | Z71: 0.0078125 | AA71: 0.0078125 | AB71: 0.0078125 | AC71: 0.0078125 | AD71: 0.015625 | AE71: 0.015625 | AF71: 0.015625 | AG71: 0.015625 | AH71: 0.015625 | AI71: 0.015625 | AJ71: 0.015625 | AK71: 0.015625 | AL71: 0.03125 | AM71: 0.03125 | AN71: 0.03125 | AO71: 0.03125 | AP71: 0.03125 | AQ71: 0.03125 | AR71: 0.03125 | AS71: 0.0625 | AT71: 0.0625 | AU71: 0.0625 | AV71: 0.0625 | AW71: 0.0625 | AX71: 0.0625 | AY71: 0.125 | AZ71: 0.125 | BA71: 0.125 | BB71: 0.125 | BC71: 0.125 | BD71: 0.25 | BE71: 0.25 | BF71: 0.25 | BG71: 0.25 | BH71: 0.5 | BI71: 0.5 | BJ71: 1 | BK71: 0.25 | BL71: 0.25 | BM71: 0.125
B72: 53 | C72: 2011 | D72: 24 | E72: 2 | G72: 0.9436832974 | H72: 0.8730481898 | I72: 0.8086815941 | K72: 0.001953125 | L72: 0.001953125 | M72: 0.001953125 | N72: 0.001953125 | O72: 0.001953125 | P72: 0.001953125 | Q72: 0.001953125 | R72: 0.001953125 | S72: 0.001953125 | T72: 0.001953125 | U72: 0.00390625 | V72: 0.00390625 | W72: 0.00390625 | X72: 0.00390625 | Y72: 0.00390625 | Z72: 0.00390625 | AA72: 0.00390625 | AB72: 0.00390625 | AC72: 0.00390625 | AD72: 0.0078125 | AE72: 0.0078125 | AF72: 0.0078125 | AG72: 0.0078125 | AH72: 0.0078125 | AI72: 0.0078125 | AJ72: 0.0078125 | AK72: 0.0078125 | AL72: 0.015625 | AM72: 0.015625 | AN72: 0.015625 | AO72: 0.015625 | AP72: 0.015625 | AQ72: 0.015625 | AR72: 0.015625 | AS72: 0.03125 | AT72: 0.03125 | AU72: 0.03125 | AV72: 0.03125 | AW72: 0.03125 | AX72: 0.03125 | AY72: 0.0625 | AZ72: 0.0625 | BA72: 0.0625 | BB72: 0.0625 | BC72: 0.0625 | BD72: 0.125 | BE72: 0.125 | BF72: 0.125 | BG72: 0.125 | BH72: 0.25 | BI72: 0.25 | BJ72: 0.25 | BK72: 1 | BL72: 0.5 | BM72: 0.25
B73: 54 | C73: 2012 | D73: 12 | E73: 2 | G73: -0.24433728 | H73: 0.1690502221 | I73: 0.5671214309 | K73: 0.001953125 | L73: 0.001953125 | M73: 0.001953125 | N73: 0.001953125 | O73: 0.001953125 | P73: 0.001953125 | Q73: 0.001953125 | R73: 0.001953125 | S73: 0.001953125 | T73: 0.001953125 | U73: 0.00390625 | V73: 0.00390625 | W73: 0.00390625 | X73: 0.00390625 | Y73: 0.00390625 | Z73: 0.00390625 | AA73: 0.00390625 | AB73: 0.00390625 | AC73: 0.00390625 | AD73: 0.0078125 | AE73: 0.0078125 | AF73: 0.0078125 | AG73: 0.0078125 | AH73: 0.0078125 | AI73: 0.0078125 | AJ73: 0.0078125 | AK73: 0.0078125 | AL73: 0.015625 | AM73: 0.015625 | AN73: 0.015625 | AO73: 0.015625 | AP73: 0.015625 | AQ73: 0.015625 | AR73: 0.015625 | AS73: 0.03125 | AT73: 0.03125 | AU73: 0.03125 | AV73: 0.03125 | AW73: 0.03125 | AX73: 0.03125 | AY73: 0.0625 | AZ73: 0.0625 | BA73: 0.0625 | BB73: 0.0625 | BC73: 0.0625 | BD73: 0.125 | BE73: 0.125 | BF73: 0.125 | BG73: 0.125 | BH73: 0.25 | BI73: 0.25 | BJ73: 0.25 | BK73: 0.5 | BL73: 1 | BM73: 0.25
B74: 55 | C74: 2011 | D74: 12 | E74: 1 | G74: 0.2076877572 | H74: 0.3548513681 | I74: 0.6386495284 | K74: 0.0009765625 | L74: 0.0009765625 | M74: 0.0009765625 | N74: 0.0009765625 | O74: 0.0009765625 | P74: 0.0009765625 | Q74: 0.0009765625 | R74: 0.0009765625 | S74: 0.0009765625 | T74: 0.0009765625 | U74: 0.001953125 | V74: 0.001953125 | W74: 0.001953125 | X74: 0.001953125 | Y74: 0.001953125 | Z74: 0.001953125 | AA74: 0.001953125 | AB74: 0.001953125 | AC74: 0.001953125 | AD74: 0.00390625 | AE74: 0.00390625 | AF74: 0.00390625 | AG74: 0.00390625 | AH74: 0.00390625 | AI74: 0.00390625 | AJ74: 0.00390625 | AK74: 0.00390625 | AL74: 0.0078125 | AM74: 0.0078125 | AN74: 0.0078125 | AO74: 0.0078125 | AP74: 0.0078125 | AQ74: 0.0078125 | AR74: 0.0078125 | AS74: 0.015625 | AT74: 0.015625 | AU74: 0.015625 | AV74: 0.015625 | AW74: 0.015625 | AX74: 0.015625 | AY74: 0.03125 | AZ74: 0.03125 | BA74: 0.03125 | BB74: 0.03125 | BC74: 0.03125 | BD74: 0.0625 | BE74: 0.0625 | BF74: 0.0625 | BG74: 0.0625 | BH74: 0.125 | BI74: 0.125 | BJ74: 0.125 | BK74: 0.25 | BL74: 0.25 | BM74: 1

Sheet Cholesky Decomposition
C2: "Square Root" of Correlation Matrix via Cholesky Decompositon (55 by 55)
B5: =CholeskyDecomp('Triangle with CY correlation'!$K$20:$BM$74) -> 1 | C5: 0 | D5: 0 | E5: 0 | F5: 0 | G5: 0 | H5: 0 | I5: 0 | J5: 0 | K5: 0 | L5: 0 | M5: 0 | N5: 0 | O5: 0 | P5: 0 | Q5: 0 | R5: 0 | S5: 0 | T5: 0 | U5: 0 | V5: 0 | W5: 0 | X5: 0 | Y5: 0 | Z5: 0 | AA5: 0 | AB5: 0 | AC5: 0 | AD5: 0 | AE5: 0 | AF5: 0 | AG5: 0 | AH5: 0 | AI5: 0 | AJ5: 0 | AK5: 0 | AL5: 0 | AM5: 0 | AN5: 0 | AO5: 0 | AP5: 0 | AQ5: 0 | AR5: 0 | AS5: 0 | AT5: 0 | AU5: 0 | AV5: 0 | AW5: 0 | AX5: 0 | AY5: 0 | AZ5: 0 | BA5: 0 | BB5: 0 | BC5: 0 | BD5: 0
B6: 0.5 | C6: 0.8660254038 | D6: 0 | E6: 0 | F6: 0 | G6: 0 | H6: 0 | I6: 0 | J6: 0 | K6: 0 | L6: 0 | M6: 0 | N6: 0 | O6: 0 | P6: 0 | Q6: 0 | R6: 0 | S6: 0 | T6: 0 | U6: 0 | V6: 0 | W6: 0 | X6: 0 | Y6: 0 | Z6: 0 | AA6: 0 | AB6: 0 | AC6: 0 | AD6: 0 | AE6: 0 | AF6: 0 | AG6: 0 | AH6: 0 | AI6: 0 | AJ6: 0 | AK6: 0 | AL6: 0 | AM6: 0 | AN6: 0 | AO6: 0 | AP6: 0 | AQ6: 0 | AR6: 0 | AS6: 0 | AT6: 0 | AU6: 0 | AV6: 0 | AW6: 0 | AX6: 0 | AY6: 0 | AZ6: 0 | BA6: 0 | BB6: 0 | BC6: 0 | BD6: 0
B7: 0.5 | C7: 0.2886751346 | D7: 0.8164965809 | E7: 0 | F7: 0 | G7: 0 | H7: 0 | I7: 0 | J7: 0 | K7: 0 | L7: 0 | M7: 0 | N7: 0 | O7: 0 | P7: 0 | Q7: 0 | R7: 0 | S7: 0 | T7: 0 | U7: 0 | V7: 0 | W7: 0 | X7: 0 | Y7: 0 | Z7: 0 | AA7: 0 | AB7: 0 | AC7: 0 | AD7: 0 | AE7: 0 | AF7: 0 | AG7: 0 | AH7: 0 | AI7: 0 | AJ7: 0 | AK7: 0 | AL7: 0 | AM7: 0 | AN7: 0 | AO7: 0 | AP7: 0 | AQ7: 0 | AR7: 0 | AS7: 0 | AT7: 0 | AU7: 0 | AV7: 0 | AW7: 0 | AX7: 0 | AY7: 0 | AZ7: 0 | BA7: 0 | BB7: 0 | BC7: 0 | BD7: 0
B8: 0.5 | C8: 0.2886751346 | D8: 0.2041241452 | E8: 0.790569415 | F8: 0 | G8: 0 | H8: 0 | I8: 0 | J8: 0 | K8: 0 | L8: 0 | M8: 0 | N8: 0 | O8: 0 | P8: 0 | Q8: 0 | R8: 0 | S8: 0 | T8: 0 | U8: 0 | V8: 0 | W8: 0 | X8: 0 | Y8: 0 | Z8: 0 | AA8: 0 | AB8: 0 | AC8: 0 | AD8: 0 | AE8: 0 | AF8: 0 | AG8: 0 | AH8: 0 | AI8: 0 | AJ8: 0 | AK8: 0 | AL8: 0 | AM8: 0 | AN8: 0 | AO8: 0 | AP8: 0 | AQ8: 0 | AR8: 0 | AS8: 0 | AT8: 0 | AU8: 0 | AV8: 0 | AW8: 0 | AX8: 0 | AY8: 0 | AZ8: 0 | BA8: 0 | BB8: 0 | BC8: 0 | BD8: 0
B9: 0.5 | C9: 0.2886751346 | D9: 0.2041241452 | E9: 0.158113883 | F9: 0.7745966692 | G9: 0 | H9: 0 | I9: 0 | J9: 0 | K9: 0 | L9: 0 | M9: 0 | N9: 0 | O9: 0 | P9: 0 | Q9: 0 | R9: 0 | S9: 0 | T9: 0 | U9: 0 | V9: 0 | W9: 0 | X9: 0 | Y9: 0 | Z9: 0 | AA9: 0 | AB9: 0 | AC9: 0 | AD9: 0 | AE9: 0 | AF9: 0 | AG9: 0 | AH9: 0 | AI9: 0 | AJ9: 0 | AK9: 0 | AL9: 0 | AM9: 0 | AN9: 0 | AO9: 0 | AP9: 0 | AQ9: 0 | AR9: 0 | AS9: 0 | AT9: 0 | AU9: 0 | AV9: 0 | AW9: 0 | AX9: 0 | AY9: 0 | AZ9: 0 | BA9: 0 | BB9: 0 | BC9: 0 | BD9: 0
B10: 0.5 | C10: 0.2886751346 | D10: 0.2041241452 | E10: 0.158113883 | F10: 0.1290994449 | G10: 0.7637626158 | H10: 0 | I10: 0 | J10: 0 | K10: 0 | L10: 0 | M10: 0 | N10: 0 | O10: 0 | P10: 0 | Q10: 0 | R10: 0 | S10: 0 | T10: 0 | U10: 0 | V10: 0 | W10: 0 | X10: 0 | Y10: 0 | Z10: 0 | AA10: 0 | AB10: 0 | AC10: 0 | AD10: 0 | AE10: 0 | AF10: 0 | AG10: 0 | AH10: 0 | AI10: 0 | AJ10: 0 | AK10: 0 | AL10: 0 | AM10: 0 | AN10: 0 | AO10: 0 | AP10: 0 | AQ10: 0 | AR10: 0 | AS10: 0 | AT10: 0 | AU10: 0 | AV10: 0 | AW10: 0 | AX10: 0 | AY10: 0 | AZ10: 0 | BA10: 0 | BB10: 0 | BC10: 0 | BD10: 0
B11: 0.5 | C11: 0.2886751346 | D11: 0.2041241452 | E11: 0.158113883 | F11: 0.1290994449 | G11: 0.1091089451 | H11: 0.755928946 | I11: 0 | J11: 0 | K11: 0 | L11: 0 | M11: 0 | N11: 0 | O11: 0 | P11: 0 | Q11: 0 | R11: 0 | S11: 0 | T11: 0 | U11: 0 | V11: 0 | W11: 0 | X11: 0 | Y11: 0 | Z11: 0 | AA11: 0 | AB11: 0 | AC11: 0 | AD11: 0 | AE11: 0 | AF11: 0 | AG11: 0 | AH11: 0 | AI11: 0 | AJ11: 0 | AK11: 0 | AL11: 0 | AM11: 0 | AN11: 0 | AO11: 0 | AP11: 0 | AQ11: 0 | AR11: 0 | AS11: 0 | AT11: 0 | AU11: 0 | AV11: 0 | AW11: 0 | AX11: 0 | AY11: 0 | AZ11: 0 | BA11: 0 | BB11: 0 | BC11: 0 | BD11: 0
B12: 0.5 | C12: 0.2886751346 | D12: 0.2041241452 | E12: 0.158113883 | F12: 0.1290994449 | G12: 0.1091089451 | H12: 0.09449111825 | I12: 0.75 | J12: 0 | K12: 0 | L12: 0 | M12: 0 | N12: 0 | O12: 0 | P12: 0 | Q12: 0 | R12: 0 | S12: 0 | T12: 0 | U12: 0 | V12: 0 | W12: 0 | X12: 0 | Y12: 0 | Z12: 0 | AA12: 0 | AB12: 0 | AC12: 0 | AD12: 0 | AE12: 0 | AF12: 0 | AG12: 0 | AH12: 0 | AI12: 0 | AJ12: 0 | AK12: 0 | AL12: 0 | AM12: 0 | AN12: 0 | AO12: 0 | AP12: 0 | AQ12: 0 | AR12: 0 | AS12: 0 | AT12: 0 | AU12: 0 | AV12: 0 | AW12: 0 | AX12: 0 | AY12: 0 | AZ12: 0 | BA12: 0 | BB12: 0 | BC12: 0 | BD12: 0
B13: 0.5 | C13: 0.2886751346 | D13: 0.2041241452 | E13: 0.158113883 | F13: 0.1290994449 | G13: 0.1091089451 | H13: 0.09449111825 | I13: 0.08333333333 | J13: 0.7453559925 | K13: 0 | L13: 0 | M13: 0 | N13: 0 | O13: 0 | P13: 0 | Q13: 0 | R13: 0 | S13: 0 | T13: 0 | U13: 0 | V13: 0 | W13: 0 | X13: 0 | Y13: 0 | Z13: 0 | AA13: 0 | AB13: 0 | AC13: 0 | AD13: 0 | AE13: 0 | AF13: 0 | AG13: 0 | AH13: 0 | AI13: 0 | AJ13: 0 | AK13: 0 | AL13: 0 | AM13: 0 | AN13: 0 | AO13: 0 | AP13: 0 | AQ13: 0 | AR13: 0 | AS13: 0 | AT13: 0 | AU13: 0 | AV13: 0 | AW13: 0 | AX13: 0 | AY13: 0 | AZ13: 0 | BA13: 0 | BB13: 0 | BC13: 0 | BD13: 0
B14: 0.5 | C14: 0.2886751346 | D14: 0.2041241452 | E14: 0.158113883 | F14: 0.1290994449 | G14: 0.1091089451 | H14: 0.09449111825 | I14: 0.08333333333 | J14: 0.07453559925 | K14: 0.7416198487 | L14: 0 | M14: 0 | N14: 0 | O14: 0 | P14: 0 | Q14: 0 | R14: 0 | S14: 0 | T14: 0 | U14: 0 | V14: 0 | W14: 0 | X14: 0 | Y14: 0 | Z14: 0 | AA14: 0 | AB14: 0 | AC14: 0 | AD14: 0 | AE14: 0 | AF14: 0 | AG14: 0 | AH14: 0 | AI14: 0 | AJ14: 0 | AK14: 0 | AL14: 0 | AM14: 0 | AN14: 0 | AO14: 0 | AP14: 0 | AQ14: 0 | AR14: 0 | AS14: 0 | AT14: 0 | AU14: 0 | AV14: 0 | AW14: 0 | AX14: 0 | AY14: 0 | AZ14: 0 | BA14: 0 | BB14: 0 | BC14: 0 | BD14: 0
B15: 0.25 | C15: 0.1443375673 | D15: 0.1020620726 | E15: 0.0790569415 | F15: 0.06454972244 | G15: 0.05455447256 | H15: 0.04724555913 | I15: 0.04166666667 | J15: 0.03726779962 | K15: 0.03370999312 | L15: 0.9414688717 | M15: 0 | N15: 0 | O15: 0 | P15: 0 | Q15: 0 | R15: 0 | S15: 0 | T15: 0 | U15: 0 | V15: 0 | W15: 0 | X15: 0 | Y15: 0 | Z15: 0 | AA15: 0 | AB15: 0 | AC15: 0 | AD15: 0 | AE15: 0 | AF15: 0 | AG15: 0 | AH15: 0 | AI15: 0 | AJ15: 0 | AK15: 0 | AL15: 0 | AM15: 0 | AN15: 0 | AO15: 0 | AP15: 0 | AQ15: 0 | AR15: 0 | AS15: 0 | AT15: 0 | AU15: 0 | AV15: 0 | AW15: 0 | AX15: 0 | AY15: 0 | AZ15: 0 | BA15: 0 | BB15: 0 | BC15: 0 | BD15: 0
B16: 0.25 | C16: 0.1443375673 | D16: 0.1020620726 | E16: 0.0790569415 | F16: 0.06454972244 | G16: 0.05455447256 | H16: 0.04724555913 | I16: 0.04166666667 | J16: 0.03726779962 | K16: 0.03370999312 | L16: 0.4103838671 | M16: 0.8473185457 | N16: 0 | O16: 0 | P16: 0 | Q16: 0 | R16: 0 | S16: 0 | T16: 0 | U16: 0 | V16: 0 | W16: 0 | X16: 0 | Y16: 0 | Z16: 0 | AA16: 0 | AB16: 0 | AC16: 0 | AD16: 0 | AE16: 0 | AF16: 0 | AG16: 0 | AH16: 0 | AI16: 0 | AJ16: 0 | AK16: 0 | AL16: 0 | AM16: 0 | AN16: 0 | AO16: 0 | AP16: 0 | AQ16: 0 | AR16: 0 | AS16: 0 | AT16: 0 | AU16: 0 | AV16: 0 | AW16: 0 | AX16: 0 | AY16: 0 | AZ16: 0 | BA16: 0 | BB16: 0 | BC16: 0 | BD16: 0
B17: 0.25 | C17: 0.1443375673 | D17: 0.1020620726 | E17: 0.0790569415 | F17: 0.06454972244 | G17: 0.05455447256 | H17: 0.04724555913 | I17: 0.04166666667 | J17: 0.03726779962 | K17: 0.03370999312 | L17: 0.4103838671 | M17: 0.2572217014 | N17: 0.8073324682 | O17: 0 | P17: 0 | Q17: 0 | R17: 0 | S17: 0 | T17: 0 | U17: 0 | V17: 0 | W17: 0 | X17: 0 | Y17: 0 | Z17: 0 | AA17: 0 | AB17: 0 | AC17: 0 | AD17: 0 | AE17: 0 | AF17: 0 | AG17: 0 | AH17: 0 | AI17: 0 | AJ17: 0 | AK17: 0 | AL17: 0 | AM17: 0 | AN17: 0 | AO17: 0 | AP17: 0 | AQ17: 0 | AR17: 0 | AS17: 0 | AT17: 0 | AU17: 0 | AV17: 0 | AW17: 0 | AX17: 0 | AY17: 0 | AZ17: 0 | BA17: 0 | BB17: 0 | BC17: 0 | BD17: 0
B18: 0.25 | C18: 0.1443375673 | D18: 0.1020620726 | E18: 0.0790569415 | F18: 0.06454972244 | G18: 0.05455447256 | H18: 0.04724555913 | I18: 0.04166666667 | J18: 0.03726779962 | K18: 0.03370999312 | L18: 0.4103838671 | M18: 0.2572217014 | N18: 0.188008931 | O18: 0.7851358839 | P18: 0 | Q18: 0 | R18: 0 | S18: 0 | T18: 0 | U18: 0 | V18: 0 | W18: 0 | X18: 0 | Y18: 0 | Z18: 0 | AA18: 0 | AB18: 0 | AC18: 0 | AD18: 0 | AE18: 0 | AF18: 0 | AG18: 0 | AH18: 0 | AI18: 0 | AJ18: 0 | AK18: 0 | AL18: 0 | AM18: 0 | AN18: 0 | AO18: 0 | AP18: 0 | AQ18: 0 | AR18: 0 | AS18: 0 | AT18: 0 | AU18: 0 | AV18: 0 | AW18: 0 | AX18: 0 | AY18: 0 | AZ18: 0 | BA18: 0 | BB18: 0 | BC18: 0 | BD18: 0
B19: 0.25 | C19: 0.1443375673 | D19: 0.1020620726 | E19: 0.0790569415 | F19: 0.06454972244 | G19: 0.05455447256 | H19: 0.04724555913 | I19: 0.04166666667 | J19: 0.03726779962 | K19: 0.03370999312 | L19: 0.4103838671 | M19: 0.2572217014 | N19: 0.188008931 | O19: 0.1483034447 | P19: 0.7710022337 | Q19: 0 | R19: 0 | S19: 0 | T19: 0 | U19: 0 | V19: 0 | W19: 0 | X19: 0 | Y19: 0 | Z19: 0 | AA19: 0 | AB19: 0 | AC19: 0 | AD19: 0 | AE19: 0 | AF19: 0 | AG19: 0 | AH19: 0 | AI19: 0 | AJ19: 0 | AK19: 0 | AL19: 0 | AM19: 0 | AN19: 0 | AO19: 0 | AP19: 0 | AQ19: 0 | AR19: 0 | AS19: 0 | AT19: 0 | AU19: 0 | AV19: 0 | AW19: 0 | AX19: 0 | AY19: 0 | AZ19: 0 | BA19: 0 | BB19: 0 | BC19: 0 | BD19: 0
B20: 0.25 | C20: 0.1443375673 | D20: 0.1020620726 | E20: 0.0790569415 | F20: 0.06454972244 | G20: 0.05455447256 | H20: 0.04724555913 | I20: 0.04166666667 | J20: 0.03726779962 | K20: 0.03370999312 | L20: 0.4103838671 | M20: 0.2572217014 | N20: 0.188008931 | O20: 0.1483034447 | P20: 0.122495682 | Q20: 0.7612090727 | R20: 0 | S20: 0 | T20: 0 | U20: 0 | V20: 0 | W20: 0 | X20: 0 | Y20: 0 | Z20: 0 | AA20: 0 | AB20: 0 | AC20: 0 | AD20: 0 | AE20: 0 | AF20: 0 | AG20: 0 | AH20: 0 | AI20: 0 | AJ20: 0 | AK20: 0 | AL20: 0 | AM20: 0 | AN20: 0 | AO20: 0 | AP20: 0 | AQ20: 0 | AR20: 0 | AS20: 0 | AT20: 0 | AU20: 0 | AV20: 0 | AW20: 0 | AX20: 0 | AY20: 0 | AZ20: 0 | BA20: 0 | BB20: 0 | BC20: 0 | BD20: 0
B21: 0.25 | C21: 0.1443375673 | D21: 0.1020620726 | E21: 0.0790569415 | F21: 0.06454972244 | G21: 0.05455447256 | H21: 0.04724555913 | I21: 0.04166666667 | J21: 0.03726779962 | K21: 0.03370999312 | L21: 0.4103838671 | M21: 0.2572217014 | N21: 0.188008931 | O21: 0.1483034447 | P21: 0.122495682 | Q21: 0.1043593084 | R21: 0.7540214765 | S21: 0 | T21: 0 | U21: 0 | V21: 0 | W21: 0 | X21: 0 | Y21: 0 | Z21: 0 | AA21: 0 | AB21: 0 | AC21: 0 | AD21: 0 | AE21: 0 | AF21: 0 | AG21: 0 | AH21: 0 | AI21: 0 | AJ21: 0 | AK21: 0 | AL21: 0 | AM21: 0 | AN21: 0 | AO21: 0 | AP21: 0 | AQ21: 0 | AR21: 0 | AS21: 0 | AT21: 0 | AU21: 0 | AV21: 0 | AW21: 0 | AX21: 0 | AY21: 0 | AZ21: 0 | BA21: 0 | BB21: 0 | BC21: 0 | BD21: 0
B22: 0.25 | C22: 0.1443375673 | D22: 0.1020620726 | E22: 0.0790569415 | F22: 0.06454972244 | G22: 0.05455447256 | H22: 0.04724555913 | I22: 0.04166666667 | J22: 0.03726779962 | K22: 0.03370999312 | L22: 0.4103838671 | M22: 0.2572217014 | N22: 0.188008931 | O22: 0.1483034447 | P22: 0.122495682 | Q22: 0.1043593084 | R22: 0.09091039079 | S22: 0.7485210003 | T22: 0 | U22: 0 | V22: 0 | W22: 0 | X22: 0 | Y22: 0 | Z22: 0 | AA22: 0 | AB22: 0 | AC22: 0 | AD22: 0 | AE22: 0 | AF22: 0 | AG22: 0 | AH22: 0 | AI22: 0 | AJ22: 0 | AK22: 0 | AL22: 0 | AM22: 0 | AN22: 0 | AO22: 0 | AP22: 0 | AQ22: 0 | AR22: 0 | AS22: 0 | AT22: 0 | AU22: 0 | AV22: 0 | AW22: 0 | AX22: 0 | AY22: 0 | AZ22: 0 | BA22: 0 | BB22: 0 | BC22: 0 | BD22: 0
B23: 0.25 | C23: 0.1443375673 | D23: 0.1020620726 | E23: 0.0790569415 | F23: 0.06454972244 | G23: 0.05455447256 | H23: 0.04724555913 | I23: 0.04166666667 | J23: 0.03726779962 | K23: 0.03370999312 | L23: 0.4103838671 | M23: 0.2572217014 | N23: 0.188008931 | O23: 0.1483034447 | P23: 0.122495682 | Q23: 0.1043593084 | R23: 0.09091039079 | S23: 0.08053706966 | T23: 0.7441756972 | U23: 0 | V23: 0 | W23: 0 | X23: 0 | Y23: 0 | Z23: 0 | AA23: 0 | AB23: 0 | AC23: 0 | AD23: 0 | AE23: 0 | AF23: 0 | AG23: 0 | AH23: 0 | AI23: 0 | AJ23: 0 | AK23: 0 | AL23: 0 | AM23: 0 | AN23: 0 | AO23: 0 | AP23: 0 | AQ23: 0 | AR23: 0 | AS23: 0 | AT23: 0 | AU23: 0 | AV23: 0 | AW23: 0 | AX23: 0 | AY23: 0 | AZ23: 0 | BA23: 0 | BB23: 0 | BC23: 0 | BD23: 0
B24: 0.125 | C24: 0.07216878365 | D24: 0.05103103631 | E24: 0.03952847075 | F24: 0.03227486122 | G24: 0.02727723628 | H24: 0.02362277956 | I24: 0.02083333333 | J24: 0.01863389981 | K24: 0.01685499656 | L24: 0.2051919336 | M24: 0.1286108507 | N24: 0.09400446548 | O24: 0.07415172237 | P24: 0.061247841 | Q24: 0.05217965418 | R24: 0.04545519539 | S24: 0.04026853483 | T24: 0.03614567672 | U24: 0.9418826133 | V24: 0 | W24: 0 | X24: 0 | Y24: 0 | Z24: 0 | AA24: 0 | AB24: 0 | AC24: 0 | AD24: 0 | AE24: 0 | AF24: 0 | AG24: 0 | AH24: 0 | AI24: 0 | AJ24: 0 | AK24: 0 | AL24: 0 | AM24: 0 | AN24: 0 | AO24: 0 | AP24: 0 | AQ24: 0 | AR24: 0 | AS24: 0 | AT24: 0 | AU24: 0 | AV24: 0 | AW24: 0 | AX24: 0 | AY24: 0 | AZ24: 0 | BA24: 0 | BB24: 0 | BC24: 0 | BD24: 0
B25: 0.125 | C25: 0.07216878365 | D25: 0.05103103631 | E25: 0.03952847075 | F25: 0.03227486122 | G25: 0.02727723628 | H25: 0.02362277956 | I25: 0.02083333333 | J25: 0.01863389981 | K25: 0.01685499656 | L25: 0.2051919336 | M25: 0.1286108507 | N25: 0.09400446548 | O25: 0.07415172237 | P25: 0.061247841 | Q25: 0.05217965418 | R25: 0.04545519539 | S25: 0.04026853483 | T25: 0.03614567672 | U25: 0.4110308989 | V25: 0.8474647234 | W25: 0 | X25: 0 | Y25: 0 | Z25: 0 | AA25: 0 | AB25: 0 | AC25: 0 | AD25: 0 | AE25: 0 | AF25: 0 | AG25: 0 | AH25: 0 | AI25: 0 | AJ25: 0 | AK25: 0 | AL25: 0 | AM25: 0 | AN25: 0 | AO25: 0 | AP25: 0 | AQ25: 0 | AR25: 0 | AS25: 0 | AT25: 0 | AU25: 0 | AV25: 0 | AW25: 0 | AX25: 0 | AY25: 0 | AZ25: 0 | BA25: 0 | BB25: 0 | BC25: 0 | BD25: 0
B26: 0.125 | C26: 0.07216878365 | D26: 0.05103103631 | E26: 0.03952847075 | F26: 0.03227486122 | G26: 0.02727723628 | H26: 0.02362277956 | I26: 0.02083333333 | J26: 0.01863389981 | K26: 0.01685499656 | L26: 0.2051919336 | M26: 0.1286108507 | N26: 0.09400446548 | O26: 0.07415172237 | P26: 0.061247841 | Q26: 0.05217965418 | R26: 0.04545519539 | S26: 0.04026853483 | T26: 0.03614567672 | U26: 0.4110308989 | V26: 0.2574696637 | W26: 0.8074068551 | X26: 0 | Y26: 0 | Z26: 0 | AA26: 0 | AB26: 0 | AC26: 0 | AD26: 0 | AE26: 0 | AF26: 0 | AG26: 0 | AH26: 0 | AI26: 0 | AJ26: 0 | AK26: 0 | AL26: 0 | AM26: 0 | AN26: 0 | AO26: 0 | AP26: 0 | AQ26: 0 | AR26: 0 | AS26: 0 | AT26: 0 | AU26: 0 | AV26: 0 | AW26: 0 | AX26: 0 | AY26: 0 | AZ26: 0 | BA26: 0 | BB26: 0 | BC26: 0 | BD26: 0
B27: 0.125 | C27: 0.07216878365 | D27: 0.05103103631 | E27: 0.03952847075 | F27: 0.03227486122 | G27: 0.02727723628 | H27: 0.02362277956 | I27: 0.02083333333 | J27: 0.01863389981 | K27: 0.01685499656 | L27: 0.2051919336 | M27: 0.1286108507 | N27: 0.09400446548 | O27: 0.07415172237 | P27: 0.061247841 | Q27: 0.05217965418 | R27: 0.04545519539 | S27: 0.04026853483 | T27: 0.03614567672 | U27: 0.4110308989 | V27: 0.2574696637 | W27: 0.1881403764 | X27: 0.785180889 | Y27: 0 | Z27: 0 | AA27: 0 | AB27: 0 | AC27: 0 | AD27: 0 | AE27: 0 | AF27: 0 | AG27: 0 | AH27: 0 | AI27: 0 | AJ27: 0 | AK27: 0 | AL27: 0 | AM27: 0 | AN27: 0 | AO27: 0 | AP27: 0 | AQ27: 0 | AR27: 0 | AS27: 0 | AT27: 0 | AU27: 0 | AV27: 0 | AW27: 0 | AX27: 0 | AY27: 0 | AZ27: 0 | BA27: 0 | BB27: 0 | BC27: 0 | BD27: 0
B28: 0.125 | C28: 0.07216878365 | D28: 0.05103103631 | E28: 0.03952847075 | F28: 0.03227486122 | G28: 0.02727723628 | H28: 0.02362277956 | I28: 0.02083333333 | J28: 0.01863389981 | K28: 0.01685499656 | L28: 0.2051919336 | M28: 0.1286108507 | N28: 0.09400446548 | O28: 0.07415172237 | P28: 0.061247841 | Q28: 0.05217965418 | R28: 0.04545519539 | S28: 0.04026853483 | T28: 0.03614567672 | U28: 0.4110308989 | V28: 0.2574696637 | W28: 0.1881403764 | X28: 0.1483849518 | Y28: 0.7710323822 | Z28: 0 | AA28: 0 | AB28: 0 | AC28: 0 | AD28: 0 | AE28: 0 | AF28: 0 | AG28: 0 | AH28: 0 | AI28: 0 | AJ28: 0 | AK28: 0 | AL28: 0 | AM28: 0 | AN28: 0 | AO28: 0 | AP28: 0 | AQ28: 0 | AR28: 0 | AS28: 0 | AT28: 0 | AU28: 0 | AV28: 0 | AW28: 0 | AX28: 0 | AY28: 0 | AZ28: 0 | BA28: 0 | BB28: 0 | BC28: 0 | BD28: 0
B29: 0.125 | C29: 0.07216878365 | D29: 0.05103103631 | E29: 0.03952847075 | F29: 0.03227486122 | G29: 0.02727723628 | H29: 0.02362277956 | I29: 0.02083333333 | J29: 0.01863389981 | K29: 0.01685499656 | L29: 0.2051919336 | M29: 0.1286108507 | N29: 0.09400446548 | O29: 0.07415172237 | P29: 0.061247841 | Q29: 0.05217965418 | R29: 0.04545519539 | S29: 0.04026853483 | T29: 0.03614567672 | U29: 0.4110308989 | V29: 0.2574696637 | W29: 0.1881403764 | X29: 0.1483849518 | Y29: 0.122551188 | Z29: 0.7612306751 | AA29: 0 | AB29: 0 | AC29: 0 | AD29: 0 | AE29: 0 | AF29: 0 | AG29: 0 | AH29: 0 | AI29: 0 | AJ29: 0 | AK29: 0 | AL29: 0 | AM29: 0 | AN29: 0 | AO29: 0 | AP29: 0 | AQ29: 0 | AR29: 0 | AS29: 0 | AT29: 0 | AU29: 0 | AV29: 0 | AW29: 0 | AX29: 0 | AY29: 0 | AZ29: 0 | BA29: 0 | BB29: 0 | BC29: 0 | BD29: 0
B30: 0.125 | C30: 0.07216878365 | D30: 0.05103103631 | E30: 0.03952847075 | F30: 0.03227486122 | G30: 0.02727723628 | H30: 0.02362277956 | I30: 0.02083333333 | J30: 0.01863389981 | K30: 0.01685499656 | L30: 0.2051919336 | M30: 0.1286108507 | N30: 0.09400446548 | O30: 0.07415172237 | P30: 0.061247841 | Q30: 0.05217965418 | R30: 0.04545519539 | S30: 0.04026853483 | T30: 0.03614567672 | U30: 0.4110308989 | V30: 0.2574696637 | W30: 0.1881403764 | X30: 0.1483849518 | Y30: 0.122551188 | Z30: 0.1043995511 | AA30: 0.7540377142 | AB30: 0 | AC30: 0 | AD30: 0 | AE30: 0 | AF30: 0 | AG30: 0 | AH30: 0 | AI30: 0 | AJ30: 0 | AK30: 0 | AL30: 0 | AM30: 0 | AN30: 0 | AO30: 0 | AP30: 0 | AQ30: 0 | AR30: 0 | AS30: 0 | AT30: 0 | AU30: 0 | AV30: 0 | AW30: 0 | AX30: 0 | AY30: 0 | AZ30: 0 | BA30: 0 | BB30: 0 | BC30: 0 | BD30: 0
B31: 0.125 | C31: 0.07216878365 | D31: 0.05103103631 | E31: 0.03952847075 | F31: 0.03227486122 | G31: 0.02727723628 | H31: 0.02362277956 | I31: 0.02083333333 | J31: 0.01863389981 | K31: 0.01685499656 | L31: 0.2051919336 | M31: 0.1286108507 | N31: 0.09400446548 | O31: 0.07415172237 | P31: 0.061247841 | Q31: 0.05217965418 | R31: 0.04545519539 | S31: 0.04026853483 | T31: 0.03614567672 | U31: 0.4110308989 | V31: 0.2574696637 | W31: 0.1881403764 | X31: 0.1483849518 | Y31: 0.122551188 | Z31: 0.1043995511 | AA31: 0.09094090813 | AB31: 0.7485336504 | AC31: 0 | AD31: 0 | AE31: 0 | AF31: 0 | AG31: 0 | AH31: 0 | AI31: 0 | AJ31: 0 | AK31: 0 | AL31: 0 | AM31: 0 | AN31: 0 | AO31: 0 | AP31: 0 | AQ31: 0 | AR31: 0 | AS31: 0 | AT31: 0 | AU31: 0 | AV31: 0 | AW31: 0 | AX31: 0 | AY31: 0 | AZ31: 0 | BA31: 0 | BB31: 0 | BC31: 0 | BD31: 0
B32: 0.0625 | C32: 0.03608439182 | D32: 0.02551551815 | E32: 0.01976423538 | F32: 0.01613743061 | G32: 0.01363861814 | H32: 0.01181138978 | I32: 0.01041666667 | J32: 0.009316949906 | K32: 0.008427498281 | L32: 0.1025959668 | M32: 0.06430542535 | N32: 0.04700223274 | O32: 0.03707586118 | P32: 0.0306239205 | Q32: 0.02608982709 | R32: 0.0227275977 | S32: 0.02013426741 | T32: 0.01807283836 | U32: 0.2055154494 | V32: 0.1287348319 | W32: 0.09407018819 | X32: 0.07419247591 | Y32: 0.06127559401 | Z32: 0.05219977555 | AA32: 0.04547045406 | AB32: 0.04028050422 | AC32: 0.9425779211 | AD32: 0 | AE32: 0 | AF32: 0 | AG32: 0 | AH32: 0 | AI32: 0 | AJ32: 0 | AK32: 0 | AL32: 0 | AM32: 0 | AN32: 0 | AO32: 0 | AP32: 0 | AQ32: 0 | AR32: 0 | AS32: 0 | AT32: 0 | AU32: 0 | AV32: 0 | AW32: 0 | AX32: 0 | AY32: 0 | AZ32: 0 | BA32: 0 | BB32: 0 | BC32: 0 | BD32: 0
B33: 0.0625 | C33: 0.03608439182 | D33: 0.02551551815 | E33: 0.01976423538 | F33: 0.01613743061 | G33: 0.01363861814 | H33: 0.01181138978 | I33: 0.01041666667 | J33: 0.009316949906 | K33: 0.008427498281 | L33: 0.1025959668 | M33: 0.06430542535 | N33: 0.04700223274 | O33: 0.03707586118 | P33: 0.0306239205 | Q33: 0.02608982709 | R33: 0.0227275977 | S33: 0.02013426741 | T33: 0.01807283836 | U33: 0.2055154494 | V33: 0.1287348319 | W33: 0.09407018819 | X33: 0.07419247591 | Y33: 0.06127559401 | Z33: 0.05219977555 | AA33: 0.04547045406 | AB33: 0.04028050422 | AC33: 0.4121177981 | AD33: 0.8477098902 | AE33: 0 | AF33: 0 | AG33: 0 | AH33: 0 | AI33: 0 | AJ33: 0 | AK33: 0 | AL33: 0 | AM33: 0 | AN33: 0 | AO33: 0 | AP33: 0 | AQ33: 0 | AR33: 0 | AS33: 0 | AT33: 0 | AU33: 0 | AV33: 0 | AW33: 0 | AX33: 0 | AY33: 0 | AZ33: 0 | BA33: 0 | BB33: 0 | BC33: 0 | BD33: 0
B34: 0.0625 | C34: 0.03608439182 | D34: 0.02551551815 | E34: 0.01976423538 | F34: 0.01613743061 | G34: 0.01363861814 | H34: 0.01181138978 | I34: 0.01041666667 | J34: 0.009316949906 | K34: 0.008427498281 | L34: 0.1025959668 | M34: 0.06430542535 | N34: 0.04700223274 | O34: 0.03707586118 | P34: 0.0306239205 | Q34: 0.02608982709 | R34: 0.0227275977 | S34: 0.02013426741 | T34: 0.01807283836 | U34: 0.2055154494 | V34: 0.1287348319 | W34: 0.09407018819 | X34: 0.07419247591 | Y34: 0.06127559401 | Z34: 0.05219977555 | AA34: 0.04547045406 | AB34: 0.04028050422 | AC34: 0.4121177981 | AD34: 0.2578854634 | AE34: 0.8075315137 | AF34: 0 | AG34: 0 | AH34: 0 | AI34: 0 | AJ34: 0 | AK34: 0 | AL34: 0 | AM34: 0 | AN34: 0 | AO34: 0 | AP34: 0 | AQ34: 0 | AR34: 0 | AS34: 0 | AT34: 0 | AU34: 0 | AV34: 0 | AW34: 0 | AX34: 0 | AY34: 0 | AZ34: 0 | BA34: 0 | BB34: 0 | BC34: 0 | BD34: 0
B35: 0.0625 | C35: 0.03608439182 | D35: 0.02551551815 | E35: 0.01976423538 | F35: 0.01613743061 | G35: 0.01363861814 | H35: 0.01181138978 | I35: 0.01041666667 | J35: 0.009316949906 | K35: 0.008427498281 | L35: 0.1025959668 | M35: 0.06430542535 | N35: 0.04700223274 | O35: 0.03707586118 | P35: 0.0306239205 | Q35: 0.02608982709 | R35: 0.0227275977 | S35: 0.02013426741 | T35: 0.01807283836 | U35: 0.2055154494 | V35: 0.1287348319 | W35: 0.09407018819 | X35: 0.07419247591 | Y35: 0.06127559401 | Z35: 0.05219977555 | AA35: 0.04547045406 | AB35: 0.04028050422 | AC35: 0.4121177981 | AD35: 0.2578854634 | AE35: 0.1883606312 | AF35: 0.7852562755 | AG35: 0 | AH35: 0 | AI35: 0 | AJ35: 0 | AK35: 0 | AL35: 0 | AM35: 0 | AN35: 0 | AO35: 0 | AP35: 0 | AQ35: 0 | AR35: 0 | AS35: 0 | AT35: 0 | AU35: 0 | AV35: 0 | AW35: 0 | AX35: 0 | AY35: 0 | AZ35: 0 | BA35: 0 | BB35: 0 | BC35: 0 | BD35: 0
B36: 0.0625 | C36: 0.03608439182 | D36: 0.02551551815 | E36: 0.01976423538 | F36: 0.01613743061 | G36: 0.01363861814 | H36: 0.01181138978 | I36: 0.01041666667 | J36: 0.009316949906 | K36: 0.008427498281 | L36: 0.1025959668 | M36: 0.06430542535 | N36: 0.04700223274 | O36: 0.03707586118 | P36: 0.0306239205 | Q36: 0.02608982709 | R36: 0.0227275977 | S36: 0.02013426741 | T36: 0.01807283836 | U36: 0.2055154494 | V36: 0.1287348319 | W36: 0.09407018819 | X36: 0.07419247591 | Y36: 0.06127559401 | Z36: 0.05219977555 | AA36: 0.04547045406 | AB36: 0.04028050422 | AC36: 0.4121177981 | AD36: 0.2578854634 | AE36: 0.1883606312 | AF36: 0.1485214724 | AG36: 0.7710828688 | AH36: 0 | AI36: 0 | AJ36: 0 | AK36: 0 | AL36: 0 | AM36: 0 | AN36: 0 | AO36: 0 | AP36: 0 | AQ36: 0 | AR36: 0 | AS36: 0 | AT36: 0 | AU36: 0 | AV36: 0 | AW36: 0 | AX36: 0 | AY36: 0 | AZ36: 0 | BA36: 0 | BB36: 0 | BC36: 0 | BD36: 0
B37: 0.0625 | C37: 0.03608439182 | D37: 0.02551551815 | E37: 0.01976423538 | F37: 0.01613743061 | G37: 0.01363861814 | H37: 0.01181138978 | I37: 0.01041666667 | J37: 0.009316949906 | K37: 0.008427498281 | L37: 0.1025959668 | M37: 0.06430542535 | N37: 0.04700223274 | O37: 0.03707586118 | P37: 0.0306239205 | Q37: 0.02608982709 | R37: 0.0227275977 | S37: 0.02013426741 | T37: 0.01807283836 | U37: 0.2055154494 | V37: 0.1287348319 | W37: 0.09407018819 | X37: 0.07419247591 | Y37: 0.06127559401 | Z37: 0.05219977555 | AA37: 0.04547045406 | AB37: 0.04028050422 | AC37: 0.4121177981 | AD37: 0.2578854634 | AE37: 0.1883606312 | AF37: 0.1485214724 | AG37: 0.1226441337 | AH37: 0.7612668435 | AI37: 0 | AJ37: 0 | AK37: 0 | AL37: 0 | AM37: 0 | AN37: 0 | AO37: 0 | AP37: 0 | AQ37: 0 | AR37: 0 | AS37: 0 | AT37: 0 | AU37: 0 | AV37: 0 | AW37: 0 | AX37: 0 | AY37: 0 | AZ37: 0 | BA37: 0 | BB37: 0 | BC37: 0 | BD37: 0
B38: 0.0625 | C38: 0.03608439182 | D38: 0.02551551815 | E38: 0.01976423538 | F38: 0.01613743061 | G38: 0.01363861814 | H38: 0.01181138978 | I38: 0.01041666667 | J38: 0.009316949906 | K38: 0.008427498281 | L38: 0.1025959668 | M38: 0.06430542535 | N38: 0.04700223274 | O38: 0.03707586118 | P38: 0.0306239205 | Q38: 0.02608982709 | R38: 0.0227275977 | S38: 0.02013426741 | T38: 0.01807283836 | U38: 0.2055154494 | V38: 0.1287348319 | W38: 0.09407018819 | X38: 0.07419247591 | Y38: 0.06127559401 | Z38: 0.05219977555 | AA38: 0.04547045406 | AB38: 0.04028050422 | AC38: 0.4121177981 | AD38: 0.2578854634 | AE38: 0.1883606312 | AF38: 0.1485214724 | AG38: 0.1226441337 | AH38: 0.1044669259 | AI38: 0.7540648966 | AJ38: 0 | AK38: 0 | AL38: 0 | AM38: 0 | AN38: 0 | AO38: 0 | AP38: 0 | AQ38: 0 | AR38: 0 | AS38: 0 | AT38: 0 | AU38: 0 | AV38: 0 | AW38: 0 | AX38: 0 | AY38: 0 | AZ38: 0 | BA38: 0 | BB38: 0 | BC38: 0 | BD38: 0
B39: 0.03125 | C39: 0.01804219591 | D39: 0.01275775908 | E39: 0.009882117688 | F39: 0.008068715305 | G39: 0.00681930907 | H39: 0.005905694891 | I39: 0.005208333333 | J39: 0.004658474953 | K39: 0.00421374914 | L39: 0.05129798339 | M39: 0.03215271267 | N39: 0.02350111637 | O39: 0.01853793059 | P39: 0.01531196025 | Q39: 0.01304491354 | R39: 0.01136379885 | S39: 0.01006713371 | T39: 0.009036419181 | U39: 0.1027577247 | V39: 0.06436741593 | W39: 0.04703509409 | X39: 0.03709623795 | Y39: 0.03063779701 | Z39: 0.02609988777 | AA39: 0.02273522703 | AB39: 0.02014025211 | AC39: 0.2060588991 | AD39: 0.1289427317 | AE39: 0.0941803156 | AF39: 0.0742607362 | AG39: 0.06132206687 | AH39: 0.05223346296 | AI39: 0.04549599686 | AJ39: 0.9434424102 | AK39: 0 | AL39: 0 | AM39: 0 | AN39: 0 | AO39: 0 | AP39: 0 | AQ39: 0 | AR39: 0 | AS39: 0 | AT39: 0 | AU39: 0 | AV39: 0 | AW39: 0 | AX39: 0 | AY39: 0 | AZ39: 0 | BA39: 0 | BB39: 0 | BC39: 0 | BD39: 0
B40: 0.03125 | C40: 0.01804219591 | D40: 0.01275775908 | E40: 0.009882117688 | F40: 0.008068715305 | G40: 0.00681930907 | H40: 0.005905694891 | I40: 0.005208333333 | J40: 0.004658474953 | K40: 0.00421374914 | L40: 0.05129798339 | M40: 0.03215271267 | N40: 0.02350111637 | O40: 0.01853793059 | P40: 0.01531196025 | Q40: 0.01304491354 | R40: 0.01136379885 | S40: 0.01006713371 | T40: 0.009036419181 | U40: 0.1027577247 | V40: 0.06436741593 | W40: 0.04703509409 | X40: 0.03709623795 | Y40: 0.03063779701 | Z40: 0.02609988777 | AA40: 0.02273522703 | AB40: 0.02014025211 | AC40: 0.2060588991 | AD40: 0.1289427317 | AE40: 0.0941803156 | AF40: 0.0742607362 | AG40: 0.06132206687 | AH40: 0.05223346296 | AI40: 0.04549599686 | AJ40: 0.413468355 | AK40: 0.8480138565 | AL40: 0 | AM40: 0 | AN40: 0 | AO40: 0 | AP40: 0 | AQ40: 0 | AR40: 0 | AS40: 0 | AT40: 0 | AU40: 0 | AV40: 0 | AW40: 0 | AX40: 0 | AY40: 0 | AZ40: 0 | BA40: 0 | BB40: 0 | BC40: 0 | BD40: 0
B41: 0.03125 | C41: 0.01804219591 | D41: 0.01275775908 | E41: 0.009882117688 | F41: 0.008068715305 | G41: 0.00681930907 | H41: 0.005905694891 | I41: 0.005208333333 | J41: 0.004658474953 | K41: 0.00421374914 | L41: 0.05129798339 | M41: 0.03215271267 | N41: 0.02350111637 | O41: 0.01853793059 | P41: 0.01531196025 | Q41: 0.01304491354 | R41: 0.01136379885 | S41: 0.01006713371 | T41: 0.009036419181 | U41: 0.1027577247 | V41: 0.06436741593 | W41: 0.04703509409 | X41: 0.03709623795 | Y41: 0.03063779701 | Z41: 0.02609988777 | AA41: 0.02273522703 | AB41: 0.02014025211 | AC41: 0.2060588991 | AD41: 0.1289427317 | AE41: 0.0941803156 | AF41: 0.0742607362 | AG41: 0.06132206687 | AH41: 0.05223346296 | AI41: 0.04549599686 | AJ41: 0.413468355 | AK41: 0.2584008494 | AL41: 0.8076858931 | AM41: 0 | AN41: 0 | AO41: 0 | AP41: 0 | AQ41: 0 | AR41: 0 | AS41: 0 | AT41: 0 | AU41: 0 | AV41: 0 | AW41: 0 | AX41: 0 | AY41: 0 | AZ41: 0 | BA41: 0 | BB41: 0 | BC41: 0 | BD41: 0
B42: 0.03125 | C42: 0.01804219591 | D42: 0.01275775908 | E42: 0.009882117688 | F42: 0.008068715305 | G42: 0.00681930907 | H42: 0.005905694891 | I42: 0.005208333333 | J42: 0.004658474953 | K42: 0.00421374914 | L42: 0.05129798339 | M42: 0.03215271267 | N42: 0.02350111637 | O42: 0.01853793059 | P42: 0.01531196025 | Q42: 0.01304491354 | R42: 0.01136379885 | S42: 0.01006713371 | T42: 0.009036419181 | U42: 0.1027577247 | V42: 0.06436741593 | W42: 0.04703509409 | X42: 0.03709623795 | Y42: 0.03063779701 | Z42: 0.02609988777 | AA42: 0.02273522703 | AB42: 0.02014025211 | AC42: 0.2060588991 | AD42: 0.1289427317 | AE42: 0.0941803156 | AF42: 0.0742607362 | AG42: 0.06132206687 | AH42: 0.05223346296 | AI42: 0.04549599686 | AJ42: 0.413468355 | AK42: 0.2584008494 | AL42: 0.1886333575 | AM42: 0.7853495771 | AN42: 0 | AO42: 0 | AP42: 0 | AQ42: 0 | AR42: 0 | AS42: 0 | AT42: 0 | AU42: 0 | AV42: 0 | AW42: 0 | AX42: 0 | AY42: 0 | AZ42: 0 | BA42: 0 | BB42: 0 | BC42: 0 | BD42: 0
B43: 0.03125 | C43: 0.01804219591 | D43: 0.01275775908 | E43: 0.009882117688 | F43: 0.008068715305 | G43: 0.00681930907 | H43: 0.005905694891 | I43: 0.005208333333 | J43: 0.004658474953 | K43: 0.00421374914 | L43: 0.05129798339 | M43: 0.03215271267 | N43: 0.02350111637 | O43: 0.01853793059 | P43: 0.01531196025 | Q43: 0.01304491354 | R43: 0.01136379885 | S43: 0.01006713371 | T43: 0.009036419181 | U43: 0.1027577247 | V43: 0.06436741593 | W43: 0.04703509409 | X43: 0.03709623795 | Y43: 0.03063779701 | Z43: 0.02609988777 | AA43: 0.02273522703 | AB43: 0.02014025211 | AC43: 0.2060588991 | AD43: 0.1289427317 | AE43: 0.0941803156 | AF43: 0.0742607362 | AG43: 0.06132206687 | AH43: 0.05223346296 | AI43: 0.04549599686 | AJ43: 0.413468355 | AK43: 0.2584008494 | AL43: 0.1886333575 | AM43: 0.1486904197 | AN43: 0.7711453283 | AO43: 0 | AP43: 0 | AQ43: 0 | AR43: 0 | AS43: 0 | AT43: 0 | AU43: 0 | AV43: 0 | AW43: 0 | AX43: 0 | AY43: 0 | AZ43: 0 | BA43: 0 | BB43: 0 | BC43: 0 | BD43: 0
B44: 0.03125 | C44: 0.01804219591 | D44: 0.01275775908 | E44: 0.009882117688 | F44: 0.008068715305 | G44: 0.00681930907 | H44: 0.005905694891 | I44: 0.005208333333 | J44: 0.004658474953 | K44: 0.00421374914 | L44: 0.05129798339 | M44: 0.03215271267 | N44: 0.02350111637 | O44: 0.01853793059 | P44: 0.01531196025 | Q44: 0.01304491354 | R44: 0.01136379885 | S44: 0.01006713371 | T44: 0.009036419181 | U44: 0.1027577247 | V44: 0.06436741593 | W44: 0.04703509409 | X44: 0.03709623795 | Y44: 0.03063779701 | Z44: 0.02609988777 | AA44: 0.02273522703 | AB44: 0.02014025211 | AC44: 0.2060588991 | AD44: 0.1289427317 | AE44: 0.0941803156 | AF44: 0.0742607362 | AG44: 0.06132206687 | AH44: 0.05223346296 | AI44: 0.04549599686 | AJ44: 0.413468355 | AK44: 0.2584008494 | AL44: 0.1886333575 | AM44: 0.1486904197 | AN44: 0.1227591141 | AO44: 0.761311577 | AP44: 0 | AQ44: 0 | AR44: 0 | AS44: 0 | AT44: 0 | AU44: 0 | AV44: 0 | AW44: 0 | AX44: 0 | AY44: 0 | AZ44: 0 | BA44: 0 | BB44: 0 | BC44: 0 | BD44: 0
B45: 0.015625 | C45: 0.009021097956 | D45: 0.006378879538 | E45: 0.004941058844 | F45: 0.004034357652 | G45: 0.003409654535 | H45: 0.002952847445 | I45: 0.002604166667 | J45: 0.002329237477 | K45: 0.00210687457 | L45: 0.0256489917 | M45: 0.01607635634 | N45: 0.01175055819 | O45: 0.009268965296 | P45: 0.007655980125 | Q45: 0.006522456772 | R45: 0.005681899424 | S45: 0.005033566854 | T45: 0.00451820959 | U45: 0.05137886236 | V45: 0.03218370796 | W45: 0.02351754705 | X45: 0.01854811898 | Y45: 0.0153188985 | Z45: 0.01304994389 | AA45: 0.01136761352 | AB45: 0.01007012605 | AC45: 0.1030294495 | AD45: 0.06447136586 | AE45: 0.0470901578 | AF45: 0.0371303681 | AG45: 0.03066103344 | AH45: 0.02611673148 | AI45: 0.02274799843 | AJ45: 0.2067341775 | AK45: 0.1292004247 | AL45: 0.09431667877 | AM45: 0.07434520987 | AN45: 0.06137955705 | AO45: 0.05227512602 | AP45: 0.9445454677 | AQ45: 0 | AR45: 0 | AS45: 0 | AT45: 0 | AU45: 0 | AV45: 0 | AW45: 0 | AX45: 0 | AY45: 0 | AZ45: 0 | BA45: 0 | BB45: 0 | BC45: 0 | BD45: 0
B46: 0.015625 | C46: 0.009021097956 | D46: 0.006378879538 | E46: 0.004941058844 | F46: 0.004034357652 | G46: 0.003409654535 | H46: 0.002952847445 | I46: 0.002604166667 | J46: 0.002329237477 | K46: 0.00210687457 | L46: 0.0256489917 | M46: 0.01607635634 | N46: 0.01175055819 | O46: 0.009268965296 | P46: 0.007655980125 | Q46: 0.006522456772 | R46: 0.005681899424 | S46: 0.005033566854 | T46: 0.00451820959 | U46: 0.05137886236 | V46: 0.03218370796 | W46: 0.02351754705 | X46: 0.01854811898 | Y46: 0.0153188985 | Z46: 0.01304994389 | AA46: 0.01136761352 | AB46: 0.01007012605 | AC46: 0.1030294495 | AD46: 0.06447136586 | AE46: 0.0470901578 | AF46: 0.0371303681 | AG46: 0.03066103344 | AH46: 0.02611673148 | AI46: 0.02274799843 | AJ46: 0.2067341775 | AK46: 0.1292004247 | AL46: 0.09431667877 | AM46: 0.07434520987 | AN46: 0.06137955705 | AO46: 0.05227512602 | AP46: 0.4151903259 | AQ46: 0.8484003382 | AR46: 0 | AS46: 0 | AT46: 0 | AU46: 0 | AV46: 0 | AW46: 0 | AX46: 0 | AY46: 0 | AZ46: 0 | BA46: 0 | BB46: 0 | BC46: 0 | BD46: 0
B47: 0.015625 | C47: 0.009021097956 | D47: 0.006378879538 | E47: 0.004941058844 | F47: 0.004034357652 | G47: 0.003409654535 | H47: 0.002952847445 | I47: 0.002604166667 | J47: 0.002329237477 | K47: 0.00210687457 | L47: 0.0256489917 | M47: 0.01607635634 | N47: 0.01175055819 | O47: 0.009268965296 | P47: 0.007655980125 | Q47: 0.006522456772 | R47: 0.005681899424 | S47: 0.005033566854 | T47: 0.00451820959 | U47: 0.05137886236 | V47: 0.03218370796 | W47: 0.02351754705 | X47: 0.01854811898 | Y47: 0.0153188985 | Z47: 0.01304994389 | AA47: 0.01136761352 | AB47: 0.01007012605 | AC47: 0.1030294495 | AD47: 0.06447136586 | AE47: 0.0470901578 | AF47: 0.0371303681 | AG47: 0.03066103344 | AH47: 0.02611673148 | AI47: 0.02274799843 | AJ47: 0.2067341775 | AK47: 0.1292004247 | AL47: 0.09431667877 | AM47: 0.07434520987 | AN47: 0.06137955705 | AO47: 0.05227512602 | AP47: 0.4151903259 | AQ47: 0.2590559244 | AR47: 0.8078818985 | AS47: 0 | AT47: 0 | AU47: 0 | AV47: 0 | AW47: 0 | AX47: 0 | AY47: 0 | AZ47: 0 | BA47: 0 | BB47: 0 | BC47: 0 | BD47: 0
B48: 0.015625 | C48: 0.009021097956 | D48: 0.006378879538 | E48: 0.004941058844 | F48: 0.004034357652 | G48: 0.003409654535 | H48: 0.002952847445 | I48: 0.002604166667 | J48: 0.002329237477 | K48: 0.00210687457 | L48: 0.0256489917 | M48: 0.01607635634 | N48: 0.01175055819 | O48: 0.009268965296 | P48: 0.007655980125 | Q48: 0.006522456772 | R48: 0.005681899424 | S48: 0.005033566854 | T48: 0.00451820959 | U48: 0.05137886236 | V48: 0.03218370796 | W48: 0.02351754705 | X48: 0.01854811898 | Y48: 0.0153188985 | Z48: 0.01304994389 | AA48: 0.01136761352 | AB48: 0.01007012605 | AC48: 0.1030294495 | AD48: 0.06447136586 | AE48: 0.0470901578 | AF48: 0.0371303681 | AG48: 0.03066103344 | AH48: 0.02611673148 | AI48: 0.02274799843 | AJ48: 0.2067341775 | AK48: 0.1292004247 | AL48: 0.09431667877 | AM48: 0.07434520987 | AN48: 0.06137955705 | AO48: 0.05227512602 | AP48: 0.4151903259 | AQ48: 0.2590559244 | AR48: 0.1889795553 | AS48: 0.7854679431 | AT48: 0 | AU48: 0 | AV48: 0 | AW48: 0 | AX48: 0 | AY48: 0 | AZ48: 0 | BA48: 0 | BB48: 0 | BC48: 0 | BD48: 0
B49: 0.015625 | C49: 0.009021097956 | D49: 0.006378879538 | E49: 0.004941058844 | F49: 0.004034357652 | G49: 0.003409654535 | H49: 0.002952847445 | I49: 0.002604166667 | J49: 0.002329237477 | K49: 0.00210687457 | L49: 0.0256489917 | M49: 0.01607635634 | N49: 0.01175055819 | O49: 0.009268965296 | P49: 0.007655980125 | Q49: 0.006522456772 | R49: 0.005681899424 | S49: 0.005033566854 | T49: 0.00451820959 | U49: 0.05137886236 | V49: 0.03218370796 | W49: 0.02351754705 | X49: 0.01854811898 | Y49: 0.0153188985 | Z49: 0.01304994389 | AA49: 0.01136761352 | AB49: 0.01007012605 | AC49: 0.1030294495 | AD49: 0.06447136586 | AE49: 0.0470901578 | AF49: 0.0371303681 | AG49: 0.03066103344 | AH49: 0.02611673148 | AI49: 0.02274799843 | AJ49: 0.2067341775 | AK49: 0.1292004247 | AL49: 0.09431667877 | AM49: 0.07434520987 | AN49: 0.06137955705 | AO49: 0.05227512602 | AP49: 0.4151903259 | AQ49: 0.2590559244 | AR49: 0.1889795553 | AS49: 0.1489047269 | AT49: 0.7712245275 | AU49: 0 | AV49: 0 | AW49: 0 | AX49: 0 | AY49: 0 | AZ49: 0 | BA49: 0 | BB49: 0 | BC49: 0 | BD49: 0
B50: 0.0078125 | C50: 0.004510548978 | D50: 0.003189439769 | E50: 0.002470529422 | F50: 0.002017178826 | G50: 0.001704827267 | H50: 0.001476423723 | I50: 0.001302083333 | J50: 0.001164618738 | K50: 0.001053437285 | L50: 0.01282449585 | M50: 0.008038178168 | N50: 0.005875279093 | O50: 0.004634482648 | P50: 0.003827990062 | Q50: 0.003261228386 | R50: 0.002840949712 | S50: 0.002516783427 | T50: 0.002259104795 | U50: 0.02568943118 | V50: 0.01609185398 | W50: 0.01175877352 | X50: 0.009274059489 | Y50: 0.007659449252 | Z50: 0.006524971943 | AA50: 0.005683806758 | AB50: 0.005035063027 | AC50: 0.05151472476 | AD50: 0.03223568293 | AE50: 0.0235450789 | AF50: 0.01856518405 | AG50: 0.01533051672 | AH50: 0.01305836574 | AI50: 0.01137399921 | AJ50: 0.1033670887 | AK50: 0.06460021234 | AL50: 0.04715833938 | AM50: 0.03717260494 | AN50: 0.03068977852 | AO50: 0.02613756301 | AP50: 0.2075951629 | AQ50: 0.1295279622 | AR50: 0.09448977764 | AS50: 0.07445236347 | AT50: 0.06145244899 | AU50: 0.9460023332 | AV50: 0 | AW50: 0 | AX50: 0 | AY50: 0 | AZ50: 0 | BA50: 0 | BB50: 0 | BC50: 0 | BD50: 0
B51: 0.0078125 | C51: 0.004510548978 | D51: 0.003189439769 | E51: 0.002470529422 | F51: 0.002017178826 | G51: 0.001704827267 | H51: 0.001476423723 | I51: 0.001302083333 | J51: 0.001164618738 | K51: 0.001053437285 | L51: 0.01282449585 | M51: 0.008038178168 | N51: 0.005875279093 | O51: 0.004634482648 | P51: 0.003827990062 | Q51: 0.003261228386 | R51: 0.002840949712 | S51: 0.002516783427 | T51: 0.002259104795 | U51: 0.02568943118 | V51: 0.01609185398 | W51: 0.01175877352 | X51: 0.009274059489 | Y51: 0.007659449252 | Z51: 0.006524971943 | AA51: 0.005683806758 | AB51: 0.005035063027 | AC51: 0.05151472476 | AD51: 0.03223568293 | AE51: 0.0235450789 | AF51: 0.01856518405 | AG51: 0.01533051672 | AH51: 0.01305836574 | AI51: 0.01137399921 | AJ51: 0.1033670887 | AK51: 0.06460021234 | AL51: 0.04715833938 | AM51: 0.03717260494 | AN51: 0.03068977852 | AO51: 0.02613756301 | AP51: 0.2075951629 | AQ51: 0.1295279622 | AR51: 0.09448977764 | AS51: 0.07445236347 | AT51: 0.06145244899 | AU51: 0.4174624106 | AV51: 0.8489084463 | AW51: 0 | AX51: 0 | AY51: 0 | AZ51: 0 | BA51: 0 | BB51: 0 | BC51: 0 | BD51: 0
B52: 0.0078125 | C52: 0.004510548978 | D52: 0.003189439769 | E52: 0.002470529422 | F52: 0.002017178826 | G52: 0.001704827267 | H52: 0.001476423723 | I52: 0.001302083333 | J52: 0.001164618738 | K52: 0.001053437285 | L52: 0.01282449585 | M52: 0.008038178168 | N52: 0.005875279093 | O52: 0.004634482648 | P52: 0.003827990062 | Q52: 0.003261228386 | R52: 0.002840949712 | S52: 0.002516783427 | T52: 0.002259104795 | U52: 0.02568943118 | V52: 0.01609185398 | W52: 0.01175877352 | X52: 0.009274059489 | Y52: 0.007659449252 | Z52: 0.006524971943 | AA52: 0.005683806758 | AB52: 0.005035063027 | AC52: 0.05151472476 | AD52: 0.03223568293 | AE52: 0.0235450789 | AF52: 0.01856518405 | AG52: 0.01533051672 | AH52: 0.01305836574 | AI52: 0.01137399921 | AJ52: 0.1033670887 | AK52: 0.06460021234 | AL52: 0.04715833938 | AM52: 0.03717260494 | AN52: 0.03068977852 | AO52: 0.02613756301 | AP52: 0.2075951629 | AQ52: 0.1295279622 | AR52: 0.09448977764 | AS52: 0.07445236347 | AT52: 0.06145244899 | AU52: 0.4174624106 | AV52: 0.2599167804 | AW52: 0.8081391078 | AX52: 0 | AY52: 0 | AZ52: 0 | BA52: 0 | BB52: 0 | BC52: 0 | BD52: 0
B53: 0.0078125 | C53: 0.004510548978 | D53: 0.003189439769 | E53: 0.002470529422 | F53: 0.002017178826 | G53: 0.001704827267 | H53: 0.001476423723 | I53: 0.001302083333 | J53: 0.001164618738 | K53: 0.001053437285 | L53: 0.01282449585 | M53: 0.008038178168 | N53: 0.005875279093 | O53: 0.004634482648 | P53: 0.003827990062 | Q53: 0.003261228386 | R53: 0.002840949712 | S53: 0.002516783427 | T53: 0.002259104795 | U53: 0.02568943118 | V53: 0.01609185398 | W53: 0.01175877352 | X53: 0.009274059489 | Y53: 0.007659449252 | Z53: 0.006524971943 | AA53: 0.005683806758 | AB53: 0.005035063027 | AC53: 0.05151472476 | AD53: 0.03223568293 | AE53: 0.0235450789 | AF53: 0.01856518405 | AG53: 0.01533051672 | AH53: 0.01305836574 | AI53: 0.01137399921 | AJ53: 0.1033670887 | AK53: 0.06460021234 | AL53: 0.04715833938 | AM53: 0.03717260494 | AN53: 0.03068977852 | AO53: 0.02613756301 | AP53: 0.2075951629 | AQ53: 0.1295279622 | AR53: 0.09448977764 | AS53: 0.07445236347 | AT53: 0.06145244899 | AU53: 0.4174624106 | AV53: 0.2599167804 | AW53: 0.1894337448 | AX53: 0.7856231118 | AY53: 0 | AZ53: 0 | BA53: 0 | BB53: 0 | BC53: 0 | BD53: 0
B54: 0.00390625 | C54: 0.002255274489 | D54: 0.001594719885 | E54: 0.001235264711 | F54: 0.001008589413 | G54: 0.0008524136337 | H54: 0.0007382118613 | I54: 0.0006510416667 | J54: 0.0005823093691 | K54: 0.0005267186425 | L54: 0.006412247924 | M54: 0.004019089084 | N54: 0.002937639546 | O54: 0.002317241324 | P54: 0.001913995031 | Q54: 0.001630614193 | R54: 0.001420474856 | S54: 0.001258391713 | T54: 0.001129552398 | U54: 0.01284471559 | V54: 0.008045926991 | W54: 0.005879386762 | X54: 0.004637029744 | Y54: 0.003829724626 | Z54: 0.003262485972 | AA54: 0.002841903379 | AB54: 0.002517531514 | AC54: 0.02575736238 | AD54: 0.01611784146 | AE54: 0.01177253945 | AF54: 0.009282592025 | AG54: 0.007665258359 | AH54: 0.00652918287 | AI54: 0.005686999607 | AJ54: 0.05168354437 | AK54: 0.03230010617 | AL54: 0.02357916969 | AM54: 0.01858630247 | AN54: 0.01534488926 | AO54: 0.0130687815 | AP54: 0.1037975815 | AQ54: 0.06476398109 | AR54: 0.04724488882 | AS54: 0.03722618173 | AT54: 0.03072622449 | AU54: 0.2087312053 | AV54: 0.1299583902 | AW54: 0.09471687239 | AX54: 0.07459281178 | AY54: 0.9480173157 | AZ54: 0 | BA54: 0 | BB54: 0 | BC54: 0 | BD54: 0
B55: 0.00390625 | C55: 0.002255274489 | D55: 0.001594719885 | E55: 0.001235264711 | F55: 0.001008589413 | G55: 0.0008524136337 | H55: 0.0007382118613 | I55: 0.0006510416667 | J55: 0.0005823093691 | K55: 0.0005267186425 | L55: 0.006412247924 | M55: 0.004019089084 | N55: 0.002937639546 | O55: 0.002317241324 | P55: 0.001913995031 | Q55: 0.001630614193 | R55: 0.001420474856 | S55: 0.001258391713 | T55: 0.001129552398 | U55: 0.01284471559 | V55: 0.008045926991 | W55: 0.005879386762 | X55: 0.004637029744 | Y55: 0.003829724626 | Z55: 0.003262485972 | AA55: 0.002841903379 | AB55: 0.002517531514 | AC55: 0.02575736238 | AD55: 0.01611784146 | AE55: 0.01177253945 | AF55: 0.009282592025 | AG55: 0.007665258359 | AH55: 0.00652918287 | AI55: 0.005686999607 | AJ55: 0.05168354437 | AK55: 0.03230010617 | AL55: 0.02357916969 | AM55: 0.01858630247 | AN55: 0.01534488926 | AO55: 0.0130687815 | AP55: 0.1037975815 | AQ55: 0.06476398109 | AR55: 0.04724488882 | AS55: 0.03722618173 | AT55: 0.03072622449 | AU55: 0.2087312053 | AV55: 0.1299583902 | AW55: 0.09471687239 | AX55: 0.07459281178 | AY55: 0.4206007889 | AZ55: 0.8496068545 | BA55: 0 | BB55: 0 | BC55: 0 | BD55: 0
B56: 0.00390625 | C56: 0.002255274489 | D56: 0.001594719885 | E56: 0.001235264711 | F56: 0.001008589413 | G56: 0.0008524136337 | H56: 0.0007382118613 | I56: 0.0006510416667 | J56: 0.0005823093691 | K56: 0.0005267186425 | L56: 0.006412247924 | M56: 0.004019089084 | N56: 0.002937639546 | O56: 0.002317241324 | P56: 0.001913995031 | Q56: 0.001630614193 | R56: 0.001420474856 | S56: 0.001258391713 | T56: 0.001129552398 | U56: 0.01284471559 | V56: 0.008045926991 | W56: 0.005879386762 | X56: 0.004637029744 | Y56: 0.003829724626 | Z56: 0.003262485972 | AA56: 0.002841903379 | AB56: 0.002517531514 | AC56: 0.02575736238 | AD56: 0.01611784146 | AE56: 0.01177253945 | AF56: 0.009282592025 | AG56: 0.007665258359 | AH56: 0.00652918287 | AI56: 0.005686999607 | AJ56: 0.05168354437 | AK56: 0.03230010617 | AL56: 0.02357916969 | AM56: 0.01858630247 | AN56: 0.01534488926 | AO56: 0.0130687815 | AP56: 0.1037975815 | AQ56: 0.06476398109 | AR56: 0.04724488882 | AS56: 0.03722618173 | AT56: 0.03072622449 | AU56: 0.2087312053 | AV56: 0.1299583902 | AW56: 0.09471687239 | AX56: 0.07459281178 | AY56: 0.4206007889 | AZ56: 0.2610993615 | BA56: 0.8084917629 | BB56: 0 | BC56: 0 | BD56: 0
B57: 0.001953125 | C57: 0.001127637245 | D57: 0.0007973599423 | E57: 0.0006176323555 | F57: 0.0005042947065 | G57: 0.0004262068169 | H57: 0.0003691059307 | I57: 0.0003255208333 | J57: 0.0002911546846 | K57: 0.0002633593213 | L57: 0.003206123962 | M57: 0.002009544542 | N57: 0.001468819773 | O57: 0.001158620662 | P57: 0.0009569975156 | Q57: 0.0008153070965 | R57: 0.000710237428 | S57: 0.0006291958567 | T57: 0.0005647761988 | U57: 0.006422357795 | V57: 0.004022963495 | W57: 0.002939693381 | X57: 0.002318514872 | Y57: 0.001914862313 | Z57: 0.001631242986 | AA57: 0.001420951689 | AB57: 0.001258765757 | AC57: 0.01287868119 | AD57: 0.008058920732 | AE57: 0.005886269725 | AF57: 0.004641296012 | AG57: 0.00383262918 | AH57: 0.003264591435 | AI57: 0.002843499803 | AJ57: 0.02584177219 | AK57: 0.01615005309 | AL57: 0.01178958485 | AM57: 0.009293151234 | AN57: 0.007672444631 | AO57: 0.006534390752 | AP57: 0.05189879073 | AQ57: 0.03238199054 | AR57: 0.02362244441 | AS57: 0.01861309087 | AT57: 0.01536311225 | AU57: 0.1043656027 | AV57: 0.0649791951 | AW57: 0.04735843619 | AX57: 0.03729640589 | AY57: 0.2103003945 | AZ57: 0.1305496808 | BA57: 0.09502813617 | BB57: 0.9509912649 | BC57: 0 | BD57: 0
B58: 0.001953125 | C58: 0.001127637245 | D58: 0.0007973599423 | E58: 0.0006176323555 | F58: 0.0005042947065 | G58: 0.0004262068169 | H58: 0.0003691059307 | I58: 0.0003255208333 | J58: 0.0002911546846 | K58: 0.0002633593213 | L58: 0.003206123962 | M58: 0.002009544542 | N58: 0.001468819773 | O58: 0.001158620662 | P58: 0.0009569975156 | Q58: 0.0008153070965 | R58: 0.000710237428 | S58: 0.0006291958567 | T58: 0.0005647761988 | U58: 0.006422357795 | V58: 0.004022963495 | W58: 0.002939693381 | X58: 0.002318514872 | Y58: 0.001914862313 | Z58: 0.001631242986 | AA58: 0.001420951689 | AB58: 0.001258765757 | AC58: 0.01287868119 | AD58: 0.008058920732 | AE58: 0.005886269725 | AF58: 0.004641296012 | AG58: 0.00383262918 | AH58: 0.003264591435 | AI58: 0.002843499803 | AJ58: 0.02584177219 | AK58: 0.01615005309 | AL58: 0.01178958485 | AM58: 0.009293151234 | AN58: 0.007672444631 | AO58: 0.006534390752 | AP58: 0.05189879073 | AQ58: 0.03238199054 | AR58: 0.02362244441 | AS58: 0.01861309087 | AT58: 0.01536311225 | AU58: 0.1043656027 | AV58: 0.0649791951 | AW58: 0.04735843619 | AX58: 0.03729640589 | AY58: 0.2103003945 | AZ58: 0.1305496808 | BA58: 0.09502813617 | BB58: 0.4252240803 | BC58: 0.8506285132 | BD58: 0
B59: 0.0009765625 | C59: 0.0005638186223 | D59: 0.0003986799712 | E59: 0.0003088161778 | F59: 0.0002521473533 | G59: 0.0002131034084 | H59: 0.0001845529653 | I59: 0.0001627604167 | J59: 0.0001455773423 | K59: 0.0001316796606 | L59: 0.001603061981 | M59: 0.001004772271 | N59: 0.0007344098866 | O59: 0.000579310331 | P59: 0.0004784987578 | Q59: 0.0004076535482 | R59: 0.000355118714 | S59: 0.0003145979283 | T59: 0.0002823880994 | U59: 0.003211178897 | V59: 0.002011481748 | W59: 0.00146984669 | X59: 0.001159257436 | Y59: 0.0009574311565 | Z59: 0.0008156214929 | AA59: 0.0007104758447 | AB59: 0.0006293828784 | AC59: 0.006439340596 | AD59: 0.004029460366 | AE59: 0.002943134862 | AF59: 0.002320648006 | AG59: 0.00191631459 | AH59: 0.001632295718 | AI59: 0.001421749902 | AJ59: 0.01292088609 | AK59: 0.008075026543 | AL59: 0.005894792423 | AM59: 0.004646575617 | AN59: 0.003836222316 | AO59: 0.003267195376 | AP59: 0.02594939537 | AQ59: 0.01619099527 | AR59: 0.0118112222 | AS59: 0.009306545433 | AT59: 0.007681556123 | AU59: 0.05218280133 | AV59: 0.03248959755 | AW59: 0.0236792181 | AX59: 0.01864820295 | AY59: 0.1051501972 | AZ59: 0.06527484038 | BA59: 0.04751406808 | BB59: 0.2126120401 | BC59: 0.1314139275 | BD59: 0.955836072
